Cogmind - Beta 12 @@@ ROGUE MODE // 2023.10.14 @ 10:33:05 // Winter2019/RPGLIKE Player: Benkyo Result: Escaped! Performance ------------- Evolutions (9) 4500 Regions Visited (37) 7400 Robots Destroyed (863) 4315 Value Destroyed (45705) 45705 Prototype IDs (58) 1160 Alien Tech Used (7) 1400 Bonus (29503) 29503 TOTAL SCORE: 93983 Bonus ------- Triggered High Security 500 High Alert Combat Kills 12425 Follower Combat Kills 4221 Entered Garrisons 2200 Used RIF Installer 6500 Network Hubs Disabled 400 Built Enhanced Grunts 300 A7 Reached Mainframe 300 Met R17 at Cetus 500 Met Sigix 2000 Destroyed MAIN.C Guards 500 Win 3000 Friendly Fire -3343 Cogmind --------- Core Integrity 1157/1750 Matter 300/300 Energy 626/630 System Corruption 0% Temperature Cool (0) Movement Rolling (110) Ox1 Location To Epsilon Eridani Parts ------- > --- POWER (3) -------- Improved Quantum Reactor Zero-point Reactor Zero-point Reactor > --- PROPULSION (4) --- High-density Centrium Wheel High-density Centrium Wheel High-density Centrium Wheel High-density Centrium Wheel > --- UTILITY (12) ----- Experimental Signal Interpreter Advanced Salvage Targeting Computer Experimental Target Analyzer Experimental Core Analyzer Advanced Kinecellerator Advanced Weapon Cycler Experimental Phase Shifter Experimental Force Field Relay Coupler [C] (16) Relay Coupler [Sentry] (28) Relay Coupler [Hunter] (35) Long-range Tractor Beam > --- WEAPON (7) ------- Heavy Quantum Rifle Enhanced Autogun Enhanced Autogun Enhanced Autogun Enhanced Autogun Enhanced Autogun Enhanced Autogun > --- INVENTORY (7) ---- Improved Matter Compressor (300) Long-range Terrain Scanner Advanced KE Penetrator Advanced Remote Datajack Peak State ------------ > --- POWER ------------ Improved Quantum Reactor Zero-point Reactor Zero-point Reactor > --- PROPULSION ------- High-density Centrium Wheel High-density Centrium Wheel High-density Centrium Wheel High-density Centrium Wheel > --- UTILITY ---------- Experimental Signal Interpreter Advanced Salvage Targeting Computer Experimental Target Analyzer Experimental Core Analyzer Advanced Kinecellerator Advanced Weapon Cycler Experimental Phase Shifter Experimental Force Field Relay Coupler [C] Relay Coupler [Sentry] Relay Coupler [Hunter] Long-range Tractor Beam > --- WEAPON ----------- Heavy Quantum Rifle Enhanced Autogun Enhanced Autogun Enhanced Autogun Enhanced Autogun Enhanced Autogun Multirail > --- INVENTORY -------- Improved Matter Compressor Long-range Terrain Scanner Experimental Reaction Control System Relay Coupler [C] Enhanced Autogun Advanced KE Penetrator Advanced Remote Datajack [Rating: 207] Favorites ----------- Power Quantum Reactor Engine Heavy Ion Engine Power Core Neutrino Core Reactor Quantum Reactor Propulsion Armored Huge Wheel Wheel Armored Huge Wheel Utility Improved Kinecellerator Device Improved Kinecellerator Storage Improved Matter Compressor Processor Experimental Signal Interpreter Hackware Relay Coupler [C] Protection Heavy Regenerative Plating Weapon Enhanced Autogun Energy Gun Heavy Quantum Rifle Energy Cannon Long-range Proton Cannon Ballistic Gun Enhanced Autogun Ballistic Cannon Assault Cannon Launcher Rocket Launcher Special Weapon Advanced Remote Datajack Impact Weapon Great Maul Slashing Weapon Carbide Saw Build | -11 -10 -10 -9 -9 -9 -8 -8 -8 -8 -8 -8 -8 -7 -7 -6 -6 -5 -5 -5 -5 -5 -5 -4 -4 -4 -4 -3 -3 -3 -3 -3 -2 -2 -2 -2 -1 -1 ------- Run | Jun Mat Min Mat Min Exi Min Mat Gar Mat Gar Mat Gar Fac Gar Fac Gar Fac Ext Cet Arc Hub Gar Fac Gar Fac Gar Res Gar Res Tes Gar Res Qua Sec Gar Acc Com Slots Evolved 22 | 3 2 . 1 1 . 1 3 1 1 . . . . 1 1 1 . . . . 1 . . 1 . . . 2 . . . . 1 . . 1 . Power 2 | . . . . . . . . . . . . . . 1 . . . . . . . . . . . . . 1 . . . . . . . . . Propulsion 3 | 1 . . . . . . 2 . . . . . . . . . . . . . . . . . . . . . . . . . . . . . . Utility 11 | 1 1 . . 1 . 1 . . 1 . . . . . 1 . . . . . 1 . . 1 . . . 1 . . . . 1 . . 1 . Weapon 6 | 1 1 . 1 . . . 1 1 . . . . . . . 1 . . . . . . . . . . . . . . . . . . . . . Parts Attached 374 | 8 8 . 16 1 . 11 8 13 8 4 12 18 5 23 17 14 . 9 8 3 5 4 5 1 4 3 2 11 9 20 2 9 27 25 4 11 46 Power 18 | 1 . . 1 . . . . . . . . 1 . 1 . . . . 2 . . . . . . . . 1 3 3 . . 1 . . 3 1 Engine 2 | 1 . . 1 . . . . . . . . . . . . . . . . . . . . . . . . . . . . . . . . . . Core 1 | . . . . . . . . . . . . 1 . . . . . . . . . . . . . . . . . . . . . . . . . Reactor 15 | . . . . . . . . . . . . . . 1 . . . . 2 . . . . . . . . 1 3 3 . . 1 . . 3 1 Propulsion 19 | 3 . . . . . 2 2 . . . . . . . . . . . . . . . . . . . . . . 6 . . 3 . . . 3 Treads . | . . . . . . . . . . . . . . . . . . . . . . . . . . . . . . . . . . . . . . Leg . | . . . . . . . . . . . . . . . . . . . . . . . . . . . . . . . . . . . . . . Wheel 19 | 3 . . . . . 2 2 . . . . . . . . . . . . . . . . . . . . . . 6 . . 3 . . . 3 Hover . | . . . . . . . . . . . . . . . . . . . . . . . . . . . . . . . . . . . . . . Flight . | . . . . . . . . . . . . . . . . . . . . . . . . . . . . . . . . . . . . . . Utility 168 | 2 4 . 4 1 . 2 . . 2 2 5 6 2 4 8 11 . 2 1 3 5 4 5 1 2 3 1 7 6 11 2 8 12 20 2 5 15 Device 136 | 2 1 . 4 . . 2 . . . 2 5 5 1 4 7 10 . 2 1 3 5 4 4 . 2 1 1 6 6 7 2 7 12 16 . 4 10 Storage 1 | . . . . . . . . . . . . . . . . . . . . . . . . . . . . . . . . . . . . 1 . Processor 16 | . 2 . . 1 . . . . 2 . . 1 1 . 1 . . . . . . . 1 . . . . . . 4 . 1 . 2 . . . Hackware 13 | . . . . . . . . . . . . . . . . 1 . . . . . . . 1 . 2 . 1 . . . . . 1 2 . 5 Protection 2 | . 1 . . . . . . . . . . . . . . . . . . . . . . . . . . . . . . . . 1 . . . Artifact . | . . . . . . . . . . . . . . . . . . . . . . . . . . . . . . . . . . . . . . Weapon 169 | 2 4 . 11 . . 7 6 13 6 2 7 11 3 18 9 3 . 7 5 . . . . . 2 . 1 3 . . . 1 11 5 2 3 27 Energy Gun 3 | . . . . . . . . . . . . . . . . . . . . . . . . . . . . . . . . . . . . . 3 Energy Cannon 1 | . . . . . . . . . . . . . . . . . . . . . . . . . . . . . . . . . . . . . 1 Ballistic Gun 101 | 2 1 . 5 . . 6 3 7 4 1 6 5 2 10 5 2 . 4 4 . . . . . 2 . . 2 . . . 1 8 3 1 2 15 Ballistic Cannon 20 | . . . 5 . . 1 2 6 2 . . 1 . . . . . . . . . . . . . . . . . . . . 1 . . . 2 Launcher 8 | . 3 . 1 . . . 1 . . 1 1 . . . . 1 . . . . . . . . . . . . . . . . . . . . . Special Weapon 12 | . . . . . . . . . . . . . . . . . . 1 . . . . . . . . 1 . . . . . 1 1 1 1 6 Impact Weapon 23 | . . . . . . . . . . . . 5 1 8 4 . . 2 1 . . . . . . . . . . . . . 1 1 . . . Slashing Weapon 1 | . . . . . . . . . . . . . . . . . . . . . . . . . . . . 1 . . . . . . . . . Piercing Weapon . | . . . . . . . . . . . . . . . . . . . . . . . . . . . . . . . . . . . . . . Special Melee Weapon . | . . . . . . . . . . . . . . . . . . . . . . . . . . . . . . . . . . . . . . Unidentified Prototypes 49 | . . . 2 . . . . . . . 2 . . . 1 . . . 1 . 2 . 2 . 1 . . . 1 9 . 1 6 10 . 3 8 Corrupted Parts 1 | . . . . . . . . . . . . . . . . . . . 1 . . . . . . . . . . . . . . . . . . System Corruption 1 | . . . . . . . . . . . . . . . . . . . 1 . . . . . . . . . . . . . . . . . . Parts Lost 2 | . . . 1 . . . . . . . . . . . . . . . . . . . . . . . . . . . . 1 . . . . . Power . | . . . . . . . . . . . . . . . . . . . . . . . . . . . . . . . . . . . . . . Propulsion . | . . . . . . . . . . . . . . . . . . . . . . . . . . . . . . . . . . . . . . Utility 2 | . . . 1 . . . . . . . . . . . . . . . . . . . . . . . . . . . . 1 . . . . . Weapon . | . . . . . . . . . . . . . . . . . . . . . . . . . . . . . . . . . . . . . . Highest Loss Streak 1 | . . . 1 . . . . . . . . . . . . . . . . . . . . . . . . . . . . 1 . . . . . To Critical Strikes . | . . . . . . . . . . . . . . . . . . . . . . . . . . . . . . . . . . . . . . Average Slot Usage (%) 92 | . 99 100 99 100 100 100 98 86 87 88 88 87 88 88 88 89 90 89 90 90 89 90 90 89 89 89 90 90 90 92 100 100 99 95 96 96 99 Engine 2 | . 13 11 10 9 9 8 7 6 5 5 5 3 . . . . . . . . . . . . . . . . . . . . . . . . . Reactor 5 | . . . . . . . . . . . . . . . 5 5 5 5 7 10 9 9 9 9 9 9 9 8 11 12 12 12 11 8 8 8 10 Wheel 13 | . 26 22 20 18 18 16 15 12 11 11 11 11 11 11 10 10 10 10 10 10 9 9 9 9 9 9 9 8 8 9 16 16 15 16 16 15 14 Device 20 | . 9 11 13 18 18 22 23 19 17 17 17 18 23 22 20 20 20 20 20 20 22 23 23 22 22 22 22 25 25 23 20 21 27 24 22 22 16 Processor 13 | . 19 22 17 15 18 16 15 12 14 17 17 15 11 11 14 15 15 15 15 15 14 14 14 13 13 10 9 8 8 9 12 12 12 13 16 15 15 Hackware 3 | . . . . . . . . . . . . . . . . . . . . . . . . . 4 6 9 8 8 8 8 6 4 6 5 7 13 Ballistic Gun 28 | . 16 11 5 . . 32 31 31 36 34 35 33 32 33 29 32 35 34 34 35 33 33 33 32 30 31 27 29 29 29 29 29 27 27 28 25 23 Ballistic Cannon 2 | . . . 26 37 36 1 . 2 . . . . . . . . . . . . . . . . . . . . . . . . . . . . . Naked Turns . | . . . . . . . . . . . . . . . . . . . . . . . . . . . . . . . . . . . . . . Heaviest Build 117 | 9 16 16 31 31 31 31 32 36 39 35 37 41 41 58 60 64 62 63 82 82 84 85 84 84 84 81 79 104 113 113 109 110 112 117 99 99 103 Greatest Support 85 | 26 26 26 31 31 31 31 61 61 61 61 61 61 61 61 61 61 61 61 61 61 61 61 61 61 61 61 61 61 61 85 85 85 85 85 85 85 85 Greatest Overweight (x) 2 | . . . . . . . 1 . . . . . . . . 1 1 1 1 1 1 1 1 1 1 1 1 1 1 2 1 1 2 1 1 1 1 Average Overweight (x) . | . . . . . . . . . . . . . . . . . 1 . . 1 1 1 1 1 1 1 1 1 1 1 1 1 1 1 1 . . Largest Inventory Capacity 7 | 1 2 2 5 5 5 5 5 5 5 5 5 5 5 5 5 5 5 5 5 5 6 7 7 7 7 7 7 7 7 7 7 7 7 7 7 7 7 Average Capacity 5 | . 1 2 3 5 5 5 5 5 5 5 5 5 5 5 5 5 5 5 5 5 5 6 7 7 7 7 7 7 7 7 7 7 7 7 7 7 7 Most Carried 7 | . 1 . 5 5 5 5 5 5 5 4 5 5 5 5 5 5 5 5 5 5 6 7 7 7 7 7 7 7 7 7 7 7 7 7 7 7 7 Average Carried 5 | . . . 3 4 5 5 4 4 4 4 4 4 4 4 4 4 4 5 5 4 5 6 6 6 6 6 7 6 6 6 7 6 6 6 6 6 5 Final Capacity 7 | 1 2 2 5 5 5 5 5 5 5 5 5 5 5 5 5 5 5 5 5 5 6 7 7 7 7 7 7 7 7 7 7 7 7 7 7 7 7 Final Carried 7 | . . . 5 5 5 5 5 5 4 4 5 5 5 5 5 5 5 5 5 5 6 7 7 7 7 7 7 7 7 7 7 6 7 6 7 7 4 Class Distribution -------------------- 23% | Scavenger-Executioner 17% | Botlord-Executioner 16% | Executioner 9% | Mutant 8% | Gunner 8% | Botlord-Mutant 6% | Scavenger-Mutant 3% | Commander-Executioner Dominant Class ---------------- Mutant | -10/Materials Mutant | -10/Mines Mutant | -9/Materials Gunner | -9/Mines Gunner | -9/Exiles Gunner | -8/Mines Scavenger-Gunner | -8/Materials Gunner | -8/Garrison Scavenger-Executioner | -8/Materials Scavenger-Executioner | -8/Garrison Scavenger-Executioner | -8/Materials Executioner | -8/Garrison Executioner | -7/Factory Executioner | -7/Garrison Executioner | -6/Factory Executioner | -6/Garrison Executioner | -5/Factory Executioner | -5/Extension Commander-Executioner | -5/Cetus Commander-Executioner | -5/Archives Commander-Executioner | -5/Hub_04(d) Scavenger-Executioner | -5/Garrison Scavenger-Executioner | -4/Factory Scavenger-Executioner | -4/Garrison Scavenger-Executioner | -4/Factory Botlord-Executioner | -4/Garrison Botlord-Executioner | -3/Research Botlord-Executioner | -3/Garrison Botlord-Executioner | -3/Research Botlord-Mutant | -3/Testing Botlord-Executioner | -3/Garrison Botlord-Executioner | -2/Research Scavenger-Executioner | -2/Quarantine Scavenger-Mutant | -2/Section 7 Botlord-Executioner | -2/Garrison Botlord-Mutant | -1/Access Botlord-Executioner | -1/Command Resources | -11 -10 -10 -9 -9 -9 -8 -8 -8 -8 -8 -8 -8 -7 -7 -6 -6 -5 -5 -5 -5 -5 -5 -4 -4 -4 -4 -3 -3 -3 -3 -3 -2 -2 -2 -2 -1 -1 ----------- Run | Jun Mat Min Mat Min Exi Min Mat Gar Mat Gar Mat Gar Fac Gar Fac Gar Fac Ext Cet Arc Hub Gar Fac Gar Fac Gar Res Gar Res Tes Gar Res Qua Sec Gar Acc Com Matter Collected 36004 | 313 684 164 1826 360 . 618 362 1319 828 415 696 1142 168 1612 673 1304 28 1100 332 86 785 646 50 1470 1148 1114 62 1452 1390 1170 778 745 1528 1986 1656 1465 4529 Remotely 23727 | . 252 154 1826 360 . 618 362 1319 828 415 696 1142 168 1612 230 1304 28 1100 332 86 414 . . . . . . . 338 . 778 585 1440 1432 1656 1465 2787 Salvage Created 44361 | 106 791 138 1775 175 . 805 432 1175 1122 581 1022 1202 84 1421 947 1453 . 1822 224 40 2121 537 114 1637 1642 2023 62 1145 2503 1297 989 1740 2412 1246 2291 1480 5807 Parts 2866 | 6 53 10 148 13 . 45 47 98 64 24 63 111 18 78 40 93 5 92 23 6 100 64 5 83 112 83 9 120 134 90 84 94 147 115 131 96 362 Haulers Intercepted 26 | . 1 . 4 . . . 1 . 3 . 5 . . . 1 . . 1 . . 3 . . . . . . . . . . 3 2 1 . 1 . Recyclers Shooed 8 | . . 1 . . . . . . . . . . . . . . . 1 . . . . . . . . . . 1 . . 2 . . . 1 2 Parts Field Recycled . | . . . . . . . . . . . . . . . . . . . . . . . . . . . . . . . . . . . . . . Retrieved Matter . | . . . . . . . . . . . . . . . . . . . . . . . . . . . . . . . . . . . . . . Parts Self-Destructed . | . . . . . . . . . . . . . . . . . . . . . . . . . . . . . . . . . . . . . . Prevented . | . . . . . . . . . . . . . . . . . . . . . . . . . . . . . . . . . . . . . . Kills | -11 -10 -10 -9 -9 -9 -8 -8 -8 -8 -8 -8 -8 -7 -7 -6 -6 -5 -5 -5 -5 -5 -5 -4 -4 -4 -4 -3 -3 -3 -3 -3 -2 -2 -2 -2 -1 -1 ------- Run | Jun Mat Min Mat Min Exi Min Mat Gar Mat Gar Mat Gar Fac Gar Fac Gar Fac Ext Cet Arc Hub Gar Fac Gar Fac Gar Res Gar Res Tes Gar Res Qua Sec Gar Acc Com Combat Hostiles Destroyed 725 | . 29 25 76 9 . 16 11 36 12 12 13 32 6 29 10 26 1 19 7 . 9 16 1 28 19 25 1 29 26 10 17 11 22 16 33 13 80 Melee 1 | . . . . . . . . . . . . . . . . . . 1 . . . . . . . . . . . . . . . . . . . Guns 597 | . 10 . 4 . . 15 11 36 12 12 13 32 6 29 10 26 1 18 7 . 9 16 1 28 19 25 1 29 26 10 17 11 21 16 33 13 80 Cannons 54 | . . . 44 9 . 1 . . . . . . . . . . . . . . . . . . . . . . . . . . . . . . . AOE 72 | . 19 25 28 . . . . . . . . . . . . . . . . . . . . . . . . . . . . . . . . . . Classes Destroyed 27 | 2 7 1 4 . . 1 . 2 . . . 2 . 1 . . . . . . . . . . 1 . . . 1 . . . 1 1 . . 3 Worker 28 | . 4 . . . . . . . . . 1 . . . . . . 1 . . 7 . . . 2 . 1 . 2 1 . 3 3 2 . 1 . Builder 26 | . 1 . . . . 2 1 . 1 . 1 . . . . . . . . . 6 . . . 4 . . . 1 2 . 2 . 2 . 3 . Tunneler 10 | 2 2 1 1 . . 1 . . . . . . . . . . . . . . 2 . . . 1 . . . . . . . . . . . . Hauler 26 | . 1 . 4 . . . 1 . 3 . 5 . . . 1 . . 1 . . 3 . . . . . . . . . . 3 2 1 . 1 . Recycler 17 | 1 2 1 1 1 . 1 1 . 2 . . . . . 1 . . 1 . . 2 . . . 1 . . . . . . . . . . . 2 Operator 12 | . 1 . . . . . 1 . 1 . 1 . . . 1 . . 1 . 1 1 . . . . . . . . . . . . 1 . 1 2 Watcher 54 | . 2 . 4 . . . . . 5 . 4 . . . 3 . . 2 1 . 3 . . . 3 1 1 1 2 3 . 2 3 2 . 5 7 Swarmer 125 | . 3 2 7 5 . 6 . 9 . 3 6 7 . 6 4 6 . . . . . 4 . 13 3 4 . 3 1 1 4 . . . 11 4 13 Cutter 4 | . . . . . . . . . . . . 2 . . . . . . . . . . . . . . . 2 . . . . . . . . . Saboteur 1 | . . . . . . . . . . . . . . . . . . . . . . . . . 1 . . . . . . . . . . . . Grunt 259 | . 26 4 44 2 . 7 6 12 5 8 3 8 5 11 4 5 . 12 . . . . . 9 9 15 . 11 8 . 10 1 8 . 8 1 17 Brawler 15 | . . . 5 . . 1 1 2 . . . 2 . . . 1 . . . . . . . . 1 . . 2 . . . . . . . . . Duelist 15 | . . . 4 . . . . . 1 . 1 . . . . 2 . . . . 1 . . . . 3 . . 1 . . . . . . 1 1 Protector 12 | . . . 8 . . . . . 1 . . 1 . . . 1 . . . . . . . . . . . . 1 . . . . . . . . Sentry 86 | . . . 10 2 . . 3 8 2 . 2 8 1 9 1 7 . 3 . . 3 5 1 2 2 2 . 4 3 . . 2 . 1 5 . . Demolisher 2 | . . . . . . . . . . . . 1 . . . 1 . . . . . . . . . . . . . . . . . . . . . Specialist 13 | . . . . . . . . . . . . . . 2 . . . . . . . . . . . . . . 4 . 1 2 3 1 . . . Hunter 42 | . . . . . . 2 1 2 3 1 1 2 . . . . . 3 . . . 3 . 2 1 . . 2 2 3 . 2 3 . 2 2 5 Programmer 91 | . . . . . . . . 2 . . . . . 1 1 3 1 . 2 . 2 2 . 1 1 1 1 4 4 5 1 2 7 11 6 5 28 Heavy 4 | . . . . . . . . . . . . . . . . . . . . . . . . . . . . . 1 . . 2 . . . . 1 Behemoth 12 | . . . . . . . . 1 . . . 1 . . . . . 1 . . . 1 . 1 1 . . 1 1 . 1 . . . 1 . 2 Cetus Guard 5 | . . . . . . . . . . . . . . . . . . . 5 . . . . . . . . . . . . . . . . . . S7 Guard 1 | . . . . . . . . . . . . . . . . . . . . . . . . . . . . . . . . . . 1 . . . Enhanced Grunt 2 | . . . . . . . . . . . . . . . . . . . . . 2 . . . . . . . . . . . . . . . . Lightning 3 | . . . . . . . . . . . . . . . . . . . . . 3 . . . . . . . . . . . . . . . . Combat Programmer 2 | . . . . . . . . . . . . . . . . . . . . . . . . . . . . . . . . . . . . . 2 Striker 2 | . . . . . . . . . . . . . . . . . . . . . . . . . . . . . . . . . . . . . 2 Executioner 4 | . . . . . . . . . . . . . . . . . . . . . . . . . . . . . . . . . . . . . 4 Alpha 7 4 | . . . . . . . . . . . . . . . . . . . . . . . . . . . . . . . . . . 2 . . 2 Fortress 1 | . . . . . . . . . . . . . . . . . . . . . . . . . . . . . . . . . 1 . . . . Protovariant G 1 | . . . . . . . . . . . . . . . . . . . . . . . . . . . . . . 1 . . . . . . . Assembled 19 | . . 19 . . . . . . . . . . . . . . . . . . . . . . . . . . . . . . . . . . . Thug 3 | . . . . . . . . . . . . . . . . . . . . . 2 1 . . . . . . . . . . . . . . . Savage 2 | . . . . . . . . . . . . . . . . . . . . . 2 . . . . . . . . . . . . . . . . Guerrilla 2 | . . . . . . . . . . . . . . . . . . . . . 1 . . . . . . . . . . . . . . . 1 Mutant 2 | . . . . . . . . . . . . . . . . . . . . . . . . . . . . . . . . . . . . . 2 Best Kill Streak 40 | 1 6 19 19 3 . 6 5 11 7 3 6 6 3 5 4 5 1 6 4 1 17 4 1 16 17 4 1 5 8 5 5 11 5 6 9 6 40 Combat Bots Only 40 | . 4 19 19 2 . 6 3 11 5 3 3 6 3 5 3 5 1 4 3 . 3 4 1 16 11 4 1 5 7 3 5 3 4 5 9 4 40 Max Kills in Single Turn 18 | 1 3 10 8 1 . 2 3 2 2 2 3 2 1 2 2 1 1 2 2 1 18 2 1 4 3 2 1 2 2 2 1 3 2 3 2 2 3 Gunslinging 2 | . . . . . . 1 . 1 1 1 1 1 . 1 1 . . 1 1 . . 1 . 2 2 1 . 1 1 1 . 1 . 1 1 1 2 Exploded 10 | . 2 10 7 . . . . . . . . . . . . . . . . . . . . . . . . . . . . . . . . . . Melee 1 | . . . . . . . . . . . . . . . . . . 1 . . . . . . . . . . . . . . . . . . . Uniques/NPCs Destroyed . | . . . . . . . . . . . . . . . . . . . . . . . . . . . . . . . . . . . . . . Combat | -11 -10 -10 -9 -9 -9 -8 -8 -8 -8 -8 -8 -8 -7 -7 -6 -6 -5 -5 -5 -5 -5 -5 -4 -4 -4 -4 -3 -3 -3 -3 -3 -2 -2 -2 -2 -1 -1 -------- Run | Jun Mat Min Mat Min Exi Min Mat Gar Mat Gar Mat Gar Fac Gar Fac Gar Fac Ext Cet Arc Hub Gar Fac Gar Fac Gar Res Gar Res Tes Gar Res Qua Sec Gar Acc Com Damage Taken 15238 | . 774 182 1389 169 . 392 333 910 382 163 103 421 134 768 321 329 54 554 18 19 426 181 34 455 301 271 15 390 351 270 191 400 519 569 275 321 2854 Core 12066 | . 661 144 1091 136 . 308 273 727 304 134 85 338 107 605 249 256 48 434 14 15 348 145 30 362 238 211 12 301 275 212 147 323 407 428 208 248 2242 Absorbed by Shields 7333 | . . . 329 . . . . . . . 10 155 49 318 132 134 18 202 6 7 150 64 12 288 110 120 6 175 336 262 193 387 278 603 287 333 2369 Redirected to Core 10399 | . 371 114 950 111 . 295 197 623 277 102 61 293 95 497 228 241 21 421 14 15 282 121 14 303 210 198 12 301 215 189 138 264 394 407 208 239 1978 Regen/Repaired (Parts) 98 | . . . . . . . . . . . . . 82 . 7 . . . . . . . . . . . . . . . . . . 9 . . . Core Remaining (%) 89 | 100 . 66 . . . 60 . . . . . 100 . 92 . 100 . . . . . 100 . . . 100 . . . . 100 . . . 97 . 66 Volleys Fired 1700 | 17 84 17 142 19 . 51 26 85 32 26 24 47 11 60 26 55 1 43 9 2 29 32 4 44 34 51 9 56 49 43 30 29 51 72 83 125 182 Largest 7 | 2 2 2 4 4 . 4 4 5 6 6 6 6 6 6 6 7 7 7 7 7 7 7 7 7 7 7 6 7 7 7 7 7 7 7 7 7 7 Hottest 230 | 40 40 66 176 176 . 176 97 172 164 164 164 150 150 158 158 173 173 173 185 205 205 205 205 205 205 195 160 195 195 195 195 195 195 185 185 185 230 Shots Fired 7357 | 33 112 24 295 70 . 141 95 301 192 92 144 240 57 318 124 291 7 251 63 14 185 152 11 226 222 261 24 319 325 192 186 167 313 340 395 310 865 Gun 6847 | 33 71 1 47 . . 116 93 264 192 91 144 239 57 318 124 291 7 251 63 14 185 152 11 226 222 261 20 319 325 192 186 167 312 335 389 310 819 Cannon 357 | . . . 220 70 . 25 2 37 . . . 1 . . . . . . . . . . . . . . . . . . . . . . . . 2 Launcher 93 | . 41 23 28 . . . . . . 1 . . . . . . . . . . . . . . . . . . . . . . . . . . . Special 60 | . . . . . . . . . . . . . . . . . . . . . . . . . . . 4 . . . . . 1 5 6 . 44 Kinetic 7203 | 33 71 1 267 70 . 141 95 301 192 91 144 240 57 318 124 291 7 251 63 14 185 152 11 226 222 261 20 319 325 192 186 167 312 335 389 310 820 Thermal 1 | . . . . . . . . . . . . . . . . . . . . . . . . . . . . . . . . . . . . . 1 Explosive 93 | . 41 23 28 . . . . . . 1 . . . . . . . . . . . . . . . . . . . . . . . . . . . Electromagnetic . | . . . . . . . . . . . . . . . . . . . . . . . . . . . . . . . . . . . . . . Robot Hit Streak 63 | 4 30 5 28 29 . 26 13 44 63 34 22 39 25 38 17 22 12 31 26 2 21 21 13 31 17 37 11 18 24 22 21 21 27 29 32 19 58 Robot Miss Streak 6 | 3 3 1 2 2 . 1 1 3 3 1 3 2 1 3 4 3 2 3 2 2 3 3 . 3 2 4 2 3 3 3 4 6 5 4 3 4 4 Penetration Max 1 | . . . . . . . 1 1 1 1 1 . . 1 1 . . . 1 . 1 . . . 1 . . 1 1 1 1 1 1 1 1 1 1 Secondary Targets 133 | . 1 . . . . 4 1 6 4 2 1 3 . 6 1 3 . 8 4 . . 2 . 8 4 3 . 8 8 4 1 1 2 2 5 4 37 Max Gunslinging Chain 2 | . 1 . . . . 1 1 1 1 1 1 1 . 2 1 1 . 2 1 . . 1 . 2 2 1 . 1 1 1 1 1 1 1 2 1 2 Shots Hit Robots 4776 | 18 83 9 160 26 . 83 72 205 127 55 70 150 38 226 78 196 3 185 44 6 129 88 5 140 155 168 13 225 235 129 105 116 204 219 245 112 654 Core Hits 2125 | 7 62 46 129 10 . 34 30 70 45 21 35 63 13 70 31 68 2 70 27 4 80 39 4 64 71 70 6 97 96 49 55 61 86 89 102 60 259 Critical Kills 93 | . 1 . . . . . . 1 1 . . 1 . 1 1 . . 1 1 1 5 2 . 8 7 7 . 5 3 3 2 1 3 4 11 3 20 Critical Parts Destroyed 128 | . . . . . . . . 2 1 1 . 1 . 5 1 . . 1 2 . 11 1 . 5 4 3 . 8 5 5 2 3 5 13 14 7 28 Critical Strikes 249 | . 1 . 7 . . . . 5 2 1 . 2 . 6 2 . . 2 4 1 16 4 . 13 12 11 . 14 9 8 5 4 8 19 29 10 54 Destroy 239 | . 1 . . . . . . 3 2 1 . 2 . 6 2 . . 1 4 1 16 4 . 13 12 11 . 14 9 8 5 4 8 19 29 10 54 Blast 9 | . . . 7 . . . . 2 . . . . . . . . . . . . . . . . . . . . . . . . . . . . . Smash 1 | . . . . . . . . . . . . . . . . . . 1 . . . . . . . . . . . . . . . . . . . Melee Attacks 70 | . . . . . . . . . . . . 11 . 21 9 . . 14 9 . . . . . . . . . . . . . 4 2 . . . Kinetic 6 | . . . . . . . . . . . . . . . . . . . . . . . . . . . . . . . . . 4 2 . . . Impact 64 | . . . . . . . . . . . . 11 . 21 9 . . 14 9 . . . . . . . . . . . . . . . . . . Slashing . | . . . . . . . . . . . . . . . . . . . . . . . . . . . . . . . . . . . . . . Piercing . | . . . . . . . . . . . . . . . . . . . . . . . . . . . . . . . . . . . . . . Sneak Attacks . | . . . . . . . . . . . . . . . . . . . . . . . . . . . . . . . . . . . . . . Combat Hostiles . | . . . . . . . . . . . . . . . . . . . . . . . . . . . . . . . . . . . . . . Follow-up Attacks . | . . . . . . . . . . . . . . . . . . . . . . . . . . . . . . . . . . . . . . Damage Inflicted 112316 | 152 2959 1899 6894 734 . 1182 1269 3624 2413 1141 1453 2565 684 4183 1755 4355 71 4088 1155 179 6024 2076 112 3013 3967 3756 207 5189 5710 3199 2432 3147 4647 4523 4888 2599 14072 Guns 97613 | 152 693 12 538 . . 1044 1269 3287 2413 1141 1453 2565 684 4183 1755 4355 71 3945 1155 179 3753 2076 112 3013 3923 3756 207 5189 5710 3199 2432 2901 4498 4454 4888 2536 14072 Cannons 4046 | . . . 2914 657 . 138 . 337 . . . . . . . . . . . . . . . . . . . . . . . . . . . . . Explosions 10252 | . 2266 1887 3442 77 . . . . . . . . . . . . . . . . 2271 . . . . . . . . . . 246 . . . 63 . Melee 361 | . . . . . . . . . . . . . . . . . . 143 . . . . . . . . . . . . . . 149 69 . . . Ramming 44 | . . . . . . . . . . . . . . . . . . . . . . . . . 44 . . . . . . . . . . . . Kinetic 101877 | 152 693 12 3452 657 . 1182 1269 3624 2413 1141 1453 2565 684 4183 1755 4355 71 3945 1155 179 3753 2076 112 3013 3923 3756 207 5189 5710 3199 2432 2901 4647 4523 4888 2536 14072 Thermal 77 | . . . . 77 . . . . . . . . . . . . . . . . . . . . . . . . . . . . . . . . . Explosive 7904 | . 2266 1887 3442 . . . . . . . . . . . . . . . . . . . . . . . . . . . . 246 . . . 63 . Electromagnetic 2271 | . . . . . . . . . . . . . . . . . . . . . 2271 . . . . . . . . . . . . . . . . Impact 143 | . . . . . . . . . . . . . . . . . . 143 . . . . . . . . . . . . . . . . . . . Slashing . | . . . . . . . . . . . . . . . . . . . . . . . . . . . . . . . . . . . . . . Piercing . | . . . . . . . . . . . . . . . . . . . . . . . . . . . . . . . . . . . . . . Highest Corruption 4 | . 4 4 . . . . . . . 1 3 . . 1 1 4 . 1 1 . 4 . . . . . . 1 1 . . . 1 1 . . . Average Corruption 2 | . 3 4 . . . . . . . 1 1 . . 1 1 2 . 1 1 . 1 . . . . . . 1 1 . . . 1 1 . . . Corruption Purged 22 | . . . . . . . . . . 1 3 . . 1 1 4 . 1 1 . 4 . . . . . . 1 1 . . . 3 1 . . . Corruption Blocked 30 | . . . . . . . . . . . . . . . . . . . . . . . . . . . . . . . . . . . . . 30 Effects 21 | . 1 11 . . . . . . . . . . . . 1 3 . 1 . . 2 . . . . . . . . . . . 2 . . . . Message Errors 8 | . 1 6 . . . . . . . . . . . . . . . . . . . . . . . . . . . . . . 1 . . . . Matter Fused 7 | . . 3 . . . . . . . . . . . . 1 . . 1 . . 1 . . . . . . . . . . . 1 . . . . Energy Discharges 1 | . . 1 . . . . . . . . . . . . . . . . . . . . . . . . . . . . . . . . . . . Data Loss (minor) 3 | . . 1 . . . . . . . . . . . . . 1 . . . . 1 . . . . . . . . . . . . . . . . Data Loss (major) 1 | . . . . . . . . . . . . . . . . 1 . . . . . . . . . . . . . . . . . . . . . Alerts 1 | . . . . . . . . . . . . . . . . 1 . . . . . . . . . . . . . . . . . . . . . Overload Shots . | . . . . . . . . . . . . . . . . . . . . . . . . . . . . . . . . . . . . . . Overflow Damage 463 | . 16 86 64 52 . . . . . . . . . . . . . 44 . . 187 . . . 4 . . . . . . 10 . . . . . Projectiles 88 | . . . 45 43 . . . . . . . . . . . . . . . . . . . . . . . . . . . . . . . . . Explosions 327 | . 16 86 19 9 . . . . . . . . . . . . . . . . 187 . . . . . . . . . . 10 . . . . . Melee 48 | . . . . . . . . . . . . . . . . . . 44 . . . . . . 4 . . . . . . . . . . . . Knockbacks 21 | . . . 18 2 . . . . . . . . . . . . . . . . . . . . 1 . . . . . . . . . . . . Impact 1 | . . . . . . . . . . . . . . . . . . . . . . . . . 1 . . . . . . . . . . . . Kinetic 19 | . . . 17 2 . . . . . . . . . . . . . . . . . . . . . . . . . . . . . . . . . Secondary 1 | . . . 1 . . . . . . . . . . . . . . . . . . . . . . . . . . . . . . . . . . Self-Inflicted Damage 618 | . 179 90 147 33 . . . . . . . . . . . . . . . . 147 . . . 22 . . . . . . . . . . . . Shots 15 | . 4 4 4 1 . . . . . . . . . . . . . . . . 2 . . . . . . . . . . . . . . . . Rammed 1 | . . . . . . . . . . . . . . . . . . . . . . . . . 1 . . . . . . . . . . . . Targets Rammed 1 | . . . . . . . . . . . . . . . . . . . . . . . . . 1 . . . . . . . . . . . . Kicked . | . . . . . . . . . . . . . . . . . . . . . . . . . . . . . . . . . . . . . . Crushed . | . . . . . . . . . . . . . . . . . . . . . . . . . . . . . . . . . . . . . . Highest Temperature 685 | . 30 33 469 84 . 66 12 97 88 91 149 685 84 348 176 158 100 300 80 66 390 141 60 212 168 3 . . 209 205 154 165 310 126 109 109 109 Average Temperature 82 | . 9 12 136 31 . 28 6 23 23 31 40 160 41 126 42 55 60 63 35 49 113 58 46 77 48 3 . . 103 88 85 85 80 69 82 74 51 Received Heat Transfer 2879 | . 321 30 559 27 . 171 180 315 144 63 9 39 42 212 90 60 . 102 . . 25 6 6 53 64 79 . 18 77 24 41 8 34 4 16 4 56 Effects 29 | . . . 7 . . . . . . . . 20 . 1 . . . 1 . . . . . . . . . . . . . . . . . . . Shutdowns 3 | . . . 1 . . . . . . . . 2 . . . . . . . . . . . . . . . . . . . . . . . . . Energy Bleed 2 | . . . . . . . . . . . . 2 . . . . . . . . . . . . . . . . . . . . . . . . . Interference 16 | . . . 6 . . . . . . . . 10 . . . . . . . . . . . . . . . . . . . . . . . . . Short Circuit 3 | . . . . . . . . . . . . 2 . 1 . . . . . . . . . . . . . . . . . . . . . . . Damage (minor) 1 | . . . . . . . . . . . . . . . . . . 1 . . . . . . . . . . . . . . . . . . . Damage (major) 4 | . . . . . . . . . . . . 4 . . . . . . . . . . . . . . . . . . . . . . . . . Siege Activations . | . . . . . . . . . . . . . . . . . . . . . . . . . . . . . . . . . . . . . . Robots Corrupted 2 | . . . . . . . . . . . . . . . . . . . . . 2 . . . . . . . . . . . . . . . . Combat Hostiles . | . . . . . . . . . . . . . . . . . . . . . . . . . . . . . . . . . . . . . . Parts Fried 10 | . . . . . . . . . . . . . . . . . . . . . 7 . . . . . . . . . . . . . . . 3 Impact Corruptions 2 | . . . . . . . . . . . . . . . . . . 1 . . . . . . 1 . . . . . . . . . . . . Robots Melted . | . . . . . . . . . . . . . . . . . . . . . . . . . . . . . . . . . . . . . . Combat Hostiles . | . . . . . . . . . . . . . . . . . . . . . . . . . . . . . . . . . . . . . . Parts Melted 5 | . . . . . . . . . . . . . . 1 . . . . 1 . . . . . 1 . . . . . . . . . . . 2 Heat Transferred 100 | . . . . 100 . . . . . . . . . . . . . . . . . . . . . . . . . . . . . . . . . Parts Sabotaged 4 | . . . . . . . . . . . . . . . . . . . . . . . . . . . . . . . . . . . . . 4 Parts Stolen . | . . . . . . . . . . . . . . . . . . . . . . . . . . . . . . . . . . . . . . Parts Stripped . | . . . . . . . . . . . . . . . . . . . . . . . . . . . . . . . . . . . . . . Power Chain Reactions 2 | . . . . . . . . . . . . . . . . . . . . . 2 . . . . . . . . . . . . . . . . Missiles Intercepted . | . . . . . . . . . . . . . . . . . . . . . . . . . . . . . . . . . . . . . . Alert | -11 -10 -10 -9 -9 -9 -8 -8 -8 -8 -8 -8 -8 -7 -7 -6 -6 -5 -5 -5 -5 -5 -5 -4 -4 -4 -4 -3 -3 -3 -3 -3 -2 -2 -2 -2 -1 -1 ------- Run | Jun Mat Min Mat Min Exi Min Mat Gar Mat Gar Mat Gar Fac Gar Fac Gar Fac Ext Cet Arc Hub Gar Fac Gar Fac Gar Res Gar Res Tes Gar Res Qua Sec Gar Acc Com Peak Influence 2765 | 15 1334 878 2765 1325 . 562 582 1626 1133 510 451 815 550 1024 547 1173 661 607 738 419 1426 1312 771 1108 1323 1643 936 1153 1079 618 527 625 412 542 1332 601 711 Initial 1100 | . 9 495 290 1100 . . 193 248 792 146 248 134 427 245 537 382 615 225 339 295 146 998 688 408 581 926 924 408 648 606 192 296 243 231 406 468 274 Average 625 | 7 664 737 1314 1208 . 358 428 1166 518 390 243 450 492 696 404 794 625 446 578 395 554 1179 679 826 887 1273 518 805 765 282 388 322 306 316 943 485 167 Maximum Alert Level 5 | . 4 3 5 4 . 2 2 5 4 2 2 3 2 3 2 4 2 2 3 2 4 4 3 4 4 5 3 4 3 2 2 2 2 2 4 2 3 Low Security (%) 11 | 100 17 . . . . 14 3 . . 6 51 5 . . . . . . . . 15 . . . . . . . . 18 4 33 . . . . 84 Level 1 22 | . 20 . 3 . . 49 48 5 38 36 25 25 4 16 46 5 . 30 9 29 39 . . . . . . . . 68 40 34 94 90 . 4 8 Level 2 31 | . 17 30 13 . . 36 48 7 41 56 22 56 95 29 53 35 100 69 84 70 23 . 47 25 19 . 97 37 24 12 55 31 4 9 23 95 6 Level 3 18 | . 20 69 28 . . . . 16 15 . . 12 . 54 . 44 . . 6 . 1 33 52 62 65 25 2 48 75 . . . . . 34 . . Level 4 13 | . 24 . 26 100 . . . 61 5 . . . . . . 13 . . . . 20 66 . 12 15 69 . 13 . . . . . . 42 . . Level 5 . | . . . . . . . . 8 . . . . . . . . . . . . . . . . . 4 . . . . . . . . . . . High Security 1 | . . . 28 . . . . . . . . . . . . . . . . . . . . . . . . . . . . . . . . . . Max Security . | . . . . . . . . . . . . . . . . . . . . . . . . . . . . . . . . . . . . . . Sterilizations 1 | . . . 1 . . . . . . . . . . . . . . . . . . . . . . . . . . . . . . . . . . Squads Dispatched 96 | . 8 . 15 . . 1 1 . 1 . 1 . 2 . 8 . 2 3 . . 3 . 2 . 7 . 2 . 8 2 . 6 6 4 . 3 11 Investigation 32 | . 7 . 5 . . 1 1 . . . . . 2 . 3 . . 3 . . . . 1 . 2 . . . 1 . . 1 . . . 2 3 Extermination 19 | . . . . . . . . . . . . . . . 1 . 1 . . . 1 . . . 1 . . . 1 2 . 1 2 3 . 1 5 Reinforcement 25 | . 1 . 1 . . . . . . . 1 . . . 3 . . . . . 2 . . . . . 1 . 4 . . 4 4 1 . . 3 Assault 17 | . . . 9 . . . . . 1 . . . . . 1 . 1 . . . . . 1 . 2 . . . 2 . . . . . . . . Garrison 3 | . . . . . . . . . . . . . . . . . . . . . . . . . 2 . 1 . . . . . . . . . . Intercept . | . . . . . . . . . . . . . . . . . . . . . . . . . . . . . . . . . . . . . . Searches Triggered . | . . . . . . . . . . . . . . . . . . . . . . . . . . . . . . . . . . . . . . Construction Impeded 5 | . . . . . . . . . . . . . . . 2 . . . . . 1 . . . . . . . 1 . . . 1 . . . . Haulers Reinforced 1 | . . . . . . . . . . . . . . . . . . . . . . . . . . . . . . . . . 1 . . . . Active Scanning Responses . | . . . . . . . . . . . . . . . . . . . . . . . . . . . . . . . . . . . . . . Cargo Convoy Interrupts . | . . . . . . . . . . . . . . . . . . . . . . . . . . . . . . . . . . . . . . Stealth | -11 -10 -10 -9 -9 -9 -8 -8 -8 -8 -8 -8 -8 -7 -7 -6 -6 -5 -5 -5 -5 -5 -5 -4 -4 -4 -4 -3 -3 -3 -3 -3 -2 -2 -2 -2 -1 -1 --------- Run | Jun Mat Min Mat Min Exi Min Mat Gar Mat Gar Mat Gar Fac Gar Fac Gar Fac Ext Cet Arc Hub Gar Fac Gar Fac Gar Res Gar Res Tes Gar Res Qua Sec Gar Acc Com Distress Signals 21 | . 2 . 3 1 . . 3 . 2 . 1 . . . 1 . . . 2 . 1 . . . . . . . 2 . . . . . . . 3 Communications Jammed 42 | . . . . . . . . . . . . . . . . . . . . . 22 . . . 1 . . . 11 . . . 1 . . 4 3 Distress Signals 38 | . . . . . . . . . . . . . . . . . . . . . 19 . . . 1 . . . 11 . . . . . . 4 3 Times Spotted 885 | . 28 22 96 12 . 16 13 38 19 10 14 24 6 28 34 31 1 23 15 2 16 11 1 30 38 29 3 26 31 12 16 14 26 24 29 23 124 Peak Tracking Total 32 | . 4 18 21 4 . 3 4 7 5 3 2 5 3 6 9 4 1 4 5 1 4 4 1 5 6 4 1 4 5 3 3 3 3 4 6 4 32 Tactical Retreats 18 | . . . 2 2 . . . 1 . . . 1 . . 6 . . . . . . . . . . . . . . . 1 2 . . 1 . 2 Traps | -11 -10 -10 -9 -9 -9 -8 -8 -8 -8 -8 -8 -8 -7 -7 -6 -6 -5 -5 -5 -5 -5 -5 -4 -4 -4 -4 -3 -3 -3 -3 -3 -2 -2 -2 -2 -1 -1 ------- Run | Jun Mat Min Mat Min Exi Min Mat Gar Mat Gar Mat Gar Fac Gar Fac Gar Fac Ext Cet Arc Hub Gar Fac Gar Fac Gar Res Gar Res Tes Gar Res Qua Sec Gar Acc Com Traps Triggered 93 | . 2 . 1 . . . . 3 . 3 . 10 1 5 . 6 1 3 . . . 3 1 3 2 5 . 5 1 . 5 1 3 . 8 3 18 Indirectly . | . . . . . . . . . . . . . . . . . . . . . . . . . . . . . . . . . . . . . . Trap Hack Attempts . | . . . . . . . . . . . . . . . . . . . . . . . . . . . . . . . . . . . . . . Triggered . | . . . . . . . . . . . . . . . . . . . . . . . . . . . . . . . . . . . . . . Disarmed 6 | . . . . . . . . . . . . . . . . . . . . . 6 . . . . . . . . . . . . . . . . Reprogrammed . | . . . . . . . . . . . . . . . . . . . . . . . . . . . . . . . . . . . . . . Reused . | . . . . . . . . . . . . . . . . . . . . . . . . . . . . . . . . . . . . . . Traps Extracted . | . . . . . . . . . . . . . . . . . . . . . . . . . . . . . . . . . . . . . . Installed . | . . . . . . . . . . . . . . . . . . . . . . . . . . . . . . . . . . . . . . Triggered 1 | . . . . . . . . . . . . . . . . . . . . . . . . . . . . . . . . . . . . . 1 Most Traps Carried 1 | . . . . . . . . . . . . . . . . . . . . . . . . . . 1 . . . . . . . . . . . Machines | -11 -10 -10 -9 -9 -9 -8 -8 -8 -8 -8 -8 -8 -7 -7 -6 -6 -5 -5 -5 -5 -5 -5 -4 -4 -4 -4 -3 -3 -3 -3 -3 -2 -2 -2 -2 -1 -1 ---------- Run | Jun Mat Min Mat Min Exi Min Mat Gar Mat Gar Mat Gar Fac Gar Fac Gar Fac Ext Cet Arc Hub Gar Fac Gar Fac Gar Res Gar Res Tes Gar Res Qua Sec Gar Acc Com Machines Disabled 194 | . 20 6 35 2 . 18 2 5 3 . 2 6 . 2 1 2 . 1 1 2 20 3 . 4 1 6 . 7 2 9 . 1 7 11 11 2 2 Max in Single Turn 8 | . 2 2 2 1 . 1 1 2 1 . 1 1 . 1 . 1 . . . . 8 2 . 1 1 1 . 1 1 2 . 1 1 1 1 1 1 Garrison Relay 11 | . . . . . . . . 2 . . . . . 1 . 1 . . . . . . . 1 . 1 . 3 . . . . . . 2 . . Phase Generator 1 | . . . . . . . . 1 . . . . . . . . . . . . . . . . . . . . . . . . . . . . . Network Hub 2 | . . . . . . . . . . . . . . . . . . . . . 2 . . . . . . . . . . . . . . . . Energy Cycler 1 | . . . . . . . . . . . . . . . . . . . . . . . . . . . . . . . . . . . . 1 . Machines Repaired . | . . . . . . . . . . . . . . . . . . . . . . . . . . . . . . . . . . . . . . Machines Sabotaged . | . . . . . . . . . . . . . . . . . . . . . . . . . . . . . . . . . . . . . . Overloaded Fab Kills . | . . . . . . . . . . . . . . . . . . . . . . . . . . . . . . . . . . . . . . Hacking | -11 -10 -10 -9 -9 -9 -8 -8 -8 -8 -8 -8 -8 -7 -7 -6 -6 -5 -5 -5 -5 -5 -5 -4 -4 -4 -4 -3 -3 -3 -3 -3 -2 -2 -2 -2 -1 -1 --------- Run | Jun Mat Min Mat Min Exi Min Mat Gar Mat Gar Mat Gar Fac Gar Fac Gar Fac Ext Cet Arc Hub Gar Fac Gar Fac Gar Res Gar Res Tes Gar Res Qua Sec Gar Acc Com Machines Accessed 159 | . 9 1 9 . 1 1 3 3 7 4 6 4 4 3 12 2 1 17 1 . 4 2 7 2 7 2 1 3 3 6 2 3 9 4 2 4 10 Terminals 130 | . 7 1 7 . . 1 2 3 5 4 5 4 1 3 9 2 . 16 1 . 3 2 5 2 3 2 . 3 3 5 2 2 8 3 2 4 10 Fabricators 4 | . . . . . . . . . . . . . . . . . . . . . . . 1 . 2 . . . . . . 1 . . . . . Repair Stations 2 | . . . . . . . . . . . . . 1 . 1 . . . . . . . . . . . . . . . . . . . . . . Recycling Units 8 | . 2 . 2 . . . . . 1 . . . . . . . 1 1 . . . . . . 1 . . . . . . . . . . . . Scanalyzers 3 | . . . . . . . . . . . . . 1 . 1 . . . . . . . . . . . . . . . . . 1 . . . . Garrison Access 11 | . . . . . . . 1 . 1 . 1 . 1 . 1 . . . . . 1 . 1 . 1 . 1 . . 1 . . . 1 . . . Total Hacks 438 | . 26 4 30 . 1 3 7 6 20 7 20 6 8 7 33 3 2 31 2 . 9 6 20 2 29 5 1 4 8 24 4 23 23 10 5 18 31 Successful 167 | . 10 2 16 . 1 1 3 3 10 2 9 4 4 2 13 1 2 14 . . 5 1 6 2 10 2 1 3 1 9 2 6 7 3 2 2 8 Failed 270 | . 15 2 14 . . 2 4 3 10 5 11 2 4 5 20 2 . 17 2 . 4 5 14 . 19 3 . 1 7 15 2 17 16 7 3 16 23 Catastrophic 61 | . 1 . 1 . . 1 2 1 2 2 2 1 . . 6 . . 2 1 . 2 . 5 . 2 . . . 4 4 . 1 7 3 . 4 7 Database Lockouts 1 | . 1 . . . . . . . . . . . . . . . . . . . . . . . . . . . . . . . . . . . . Manual 178 | . 15 3 17 . . 3 6 . 18 . 11 . 3 . 21 . 1 10 1 . 6 . 16 . 11 . . . . 7 . 8 5 2 . 6 8 Terminals 375 | . 20 4 27 . . 3 6 6 14 7 19 6 3 7 26 3 . 30 2 . 8 6 18 2 16 5 . 4 8 22 4 16 20 9 5 18 31 Fabricators 17 | . . . . . . . . . . . . . . . . . . . . . . . 1 . 9 . . . . . . 7 . . . . . Repair Stations 7 | . . . . . . . . . . . . . 3 . 4 . . . . . . . . . . . . . . . . . . . . . . Recycling Units 20 | . 6 . 3 . . . . . 5 . . . . . . . 2 1 . . . . . . 3 . . . . . . . . . . . . Scanalyzers 6 | . . . . . . . . . . . . . 1 . 2 . . . . . . . . . . . . . . . . . 3 . . . . Garrison Access 12 | . . . . . . . 1 . 1 . 1 . 1 . 1 . . . . . 1 . 1 . 1 . 1 . . 2 . . . 1 . . . Terminal Hacks 107 | . 4 2 12 . 1 1 1 3 5 2 7 4 1 2 5 1 . 13 . . 3 1 2 2 2 2 . 3 1 5 2 5 5 1 2 1 6 Record 3 | . . 1 . . 1 . . . . . . . . . . . . . . . . . . . . . . . . . . . 1 . . . . Part Schematic 1 | . . . 1 . . . . . . . . . . . . . . . . . . . . . . . . . . . . . . . . . . Robot Analysis 16 | . 2 1 5 . . 1 1 . . . 2 . . . 1 . . . . . . . . . . . . . . . . . . . . . 3 Prototype ID Bank 7 | . 1 . 2 . . . . . . . 1 . . . . . . . . . . . . . . . . . . 1 . . 1 . . . 1 Open Door 14 | . . . . . . . . 1 . . . 1 . . . . . 9 . . . . . . . 1 . 1 . . . . 1 . . . . Level Access Points 1 | . . . . . . . . . . . . . . . . . . . . . . . . . . . . . . . . . . 1 . . . Branch Access Points 3 | . . . . . . . . . . . . . . . 1 . . . . . . . 1 . . . . . . . . 1 . . . . . Emergency Access Points 8 | . . . . . . . . . . 1 . 1 . 1 . . . . . . . . . 1 . 1 . 1 . . 1 . . . 1 . . Terminal Index 4 | . . . . . . . . . . . . . . . . . . . . . . . 1 . . . . . . . . 1 . . . 1 1 Garrison Index 2 | . . . . . . . . . . . . . . . . . . . . . 1 . . . . . . . . . . 1 . . . . . Unreport Threat 15 | . . . . . . . . . 3 . 2 . . . 2 . . 2 . . . . . . . . . . 1 3 . 1 1 . . . . Locate Traps 9 | . 1 . 2 . . . . . . . 1 . . . . . . 2 . . . . . . 1 . . . . 1 . . 1 . . . . Disarm Traps 2 | . . . . . . . . . . . . . . . . . . . . . 2 . . . . . . . . . . . . . . . . Garrison Status 2 | . . . . . . . . . 1 . . . 1 . . . . . . . . . . . . . . . . . . . . . . . . Recall Extermination 1 | . . . . . . . . . . . . . . . . . . . . . . . . . 1 . . . . . . . . . . . . Recall Assault 1 | . . . . . . . . . . . . . . . 1 . . . . . . . . . . . . . . . . . . . . . . Hauler Manifests 2 | . . . 1 . . . . . . . 1 . . . . . . . . . . . . . . . . . . . . . . . . . . Zone Layout 3 | . . . 1 . . . . . 1 . . . . . . . . . . . . . . . . . . . . . . 1 . . . . . Garrison Registry 5 | . . . . . . . . . . 1 . 1 . . . . . . . . . 1 . 1 . . . . . . 1 . . . . . . Patrol Navigation 3 | . . . . . . . . 1 . . . . . 1 . . . . . . . . . . . . . . . . . . . . 1 . . Security Stations 4 | . . . . . . . . 1 . . . 1 . . . 1 . . . . . . . . . . . 1 . . . . . . . . . Disengage Seal 1 | . . . . . . . . . . . . . . . . . . . . . . . . . . . . . . . . . . . . . 1 Fabricator Hacks 6 | . . . . . . . . . . . . . . . . . . . . . . . 1 . 4 . . . . . . 1 . . . . . Network Status 2 | . . . . . . . . . . . . . . . . . . . . . . . 1 . 1 . . . . . . . . . . . . Load Schematic 3 | . . . . . . . . . . . . . . . . . . . . . . . . . 2 . . . . . . 1 . . . . . Build 1 | . . . . . . . . . . . . . . . . . . . . . . . . . 1 . . . . . . . . . . . . Repair Station Hacks 4 | . . . . . . . . . . . . . 2 . 2 . . . . . . . . . . . . . . . . . . . . . . Scan Component 2 | . . . . . . . . . . . . . 1 . 1 . . . . . . . . . . . . . . . . . . . . . . Repair 2 | . . . . . . . . . . . . . 1 . 1 . . . . . . . . . . . . . . . . . . . . . . Recycling Unit Hacks 6 | . 2 . 1 . . . . . . . . . . . . . 1 1 . . . . . . 1 . . . . . . . . . . . . Retrieve Components 6 | . 2 . 1 . . . . . . . . . . . . . 1 1 . . . . . . 1 . . . . . . . . . . . . Scanalyzer 3 | . . . . . . . . . . . . . . . 2 . . . . . . . . . . . . . . . . . 1 . . . . Insert Component 2 | . . . . . . . . . . . . . . . 1 . . . . . . . . . . . . . . . . . 1 . . . . Analyze 1 | . . . . . . . . . . . . . . . 1 . . . . . . . . . . . . . . . . . . . . . . Garrison Access Hacks 12 | . . . . . . . 1 . 1 . 1 . 1 . 1 . . . . . 1 . 1 . 1 . 1 . . 2 . . . 1 . . . Unlock Access 11 | . . . . . . . 1 . 1 . 1 . 1 . 1 . . . . . 1 . 1 . 1 . 1 . . 1 . . . 1 . . . Coupler Status 1 | . . . . . . . . . . . . . . . . . . . . . . . . . . . . . . 1 . . . . . . . Unauthorized Hacks 29 | . 4 . 3 . . . 1 . 4 . 1 . . . 3 . 1 . . . 1 . 2 . 2 . . . . 2 . . 1 1 . 1 2 Terminals 20 | . 2 . 1 . . . 1 . 1 . 1 . . . 3 . . . . . 1 . 2 . 1 . . . . 2 . . 1 1 . 1 2 Assimilate 1 | . . . . . . . . . . . . . . . 1 . . . . . . . . . . . . . . . . . . . . . . Botnet 16 | . . . 1 . . . 1 . 1 . 1 . . . 2 . . . . . 1 . 2 . 1 . . . . 2 . . 1 1 . 1 1 Detonate 1 | . . . . . . . . . . . . . . . . . . . . . . . . . . . . . . . . . . . . . 1 Sabotage 2 | . 2 . . . . . . . . . . . . . . . . . . . . . . . . . . . . . . . . . . . . Fabricators . | . . . . . . . . . . . . . . . . . . . . . . . . . . . . . . . . . . . . . . Repair Stations . | . . . . . . . . . . . . . . . . . . . . . . . . . . . . . . . . . . . . . . Recycling Units 9 | . 2 . 2 . . . . . 3 . . . . . . . 1 . . . . . . . 1 . . . . . . . . . . . . Reject 1 | . . . . . . . . . 1 . . . . . . . . . . . . . . . . . . . . . . . . . . . . Recyclers 3 | . . . . . . . . . 1 . . . . . . . 1 . . . . . . . 1 . . . . . . . . . . . . Mask 1 | . . . . . . . . . 1 . . . . . . . . . . . . . . . . . . . . . . . . . . . . Tunnel 4 | . 2 . 2 . . . . . . . . . . . . . . . . . . . . . . . . . . . . . . . . . . Scanalyzers . | . . . . . . . . . . . . . . . . . . . . . . . . . . . . . . . . . . . . . . Garrison Access . | . . . . . . . . . . . . . . . . . . . . . . . . . . . . . . . . . . . . . . Data Cores Recovered 7 | . 1 . . . . . 1 . 1 . . . . . . . . 1 . . 1 . . . . . . . . . . . . 1 . . 1 Used 4 | . . . . . . . . . 1 . . . . . . . . 1 . . 1 . . . . . . . . . . . . . . . 1 Hacking Detections 120 | . 6 1 7 . . 1 2 3 6 4 4 3 4 2 12 1 1 12 1 . 3 1 5 . 6 . . . 3 5 1 3 6 4 . 4 9 Full Trace Events 37 | . 4 1 3 . . 1 1 2 2 1 . 1 2 2 3 1 . 3 . . . . 1 . 2 . . . 1 . . 1 . . . 2 3 Feedback Events 3 | . . . . . . . . . . 1 . . . . 1 . . 1 . . . . . . . . . . . . . . . . . . . Corruption 3 | . . . . . . . . . . 1 . . . . 1 . . 1 . . . . . . . . . . . . . . . . . . . Feedback Blocked . | . . . . . . . . . . . . . . . . . . . . . . . . . . . . . . . . . . . . . . Robot Schematics Acquired . | . . . . . . . . . . . . . . . . . . . . . . . . . . . . . . . . . . . . . . Robots Built . | . . . . . . . . . . . . . . . . . . . . . . . . . . . . . . . . . . . . . . Authchips . | . . . . . . . . . . . . . . . . . . . . . . . . . . . . . . . . . . . . . . Time . | . . . . . . . . . . . . . . . . . . . . . . . . . . . . . . . . . . . . . . Total Robot Build Rating . | . . . . . . . . . . . . . . . . . . . . . . . . . . . . . . . . . . . . . . Part Schematics Acquired 2 | . . . 1 . . . . . . . . . . . 1 . . . . . . . . . . . . . . . . . . . . . . Parts Built 1 | . . . . . . . . . . . . . . . . . . . . . . . . . 1 . . . . . . . . . . . . Authchips . | . . . . . . . . . . . . . . . . . . . . . . . . . . . . . . . . . . . . . . Time 116 | . . . . . . . . . . . . . . . . . . . . . . . . . 116 . . . . . . . . . . . . Total Part Build Rating 3 | . . . . . . . . . . . . . . . . . . . . . . . . . 3 . . . . . . . . . . . . Parts Repaired 2 | . . . . . . . . . . . . . 1 . 1 . . . . . . . . . . . . . . . . . . . . . . Time 152 | . . . . . . . . . . . . . 76 . 76 . . . . . . . . . . . . . . . . . . . . . . Parts Recycled . | . . . . . . . . . . . . . . . . . . . . . . . . . . . . . . . . . . . . . . Recycled Matter . | . . . . . . . . . . . . . . . . . . . . . . . . . . . . . . . . . . . . . . Retrieved Matter . | . . . . . . . . . . . . . . . . . . . . . . . . . . . . . . . . . . . . . . Retrieved Components 29 | . 10 . 9 . . . . . . . . . . . . . 2 1 . . . . . . 7 . . . . . . . . . . . . Parts Scanalyzed 1 | . . . . . . . . . . . . . . . 1 . . . . . . . . . . . . . . . . . . . . . . Part Schematics Acquired 1 | . . . . . . . . . . . . . . . 1 . . . . . . . . . . . . . . . . . . . . . . Parts Damaged . | . . . . . . . . . . . . . . . . . . . . . . . . . . . . . . . . . . . . . . Bothacking | -11 -10 -10 -9 -9 -9 -8 -8 -8 -8 -8 -8 -8 -7 -7 -6 -6 -5 -5 -5 -5 -5 -5 -4 -4 -4 -4 -3 -3 -3 -3 -3 -2 -2 -2 -2 -1 -1 ------------ Run | Jun Mat Min Mat Min Exi Min Mat Gar Mat Gar Mat Gar Fac Gar Fac Gar Fac Ext Cet Arc Hub Gar Fac Gar Fac Gar Res Gar Res Tes Gar Res Qua Sec Gar Acc Com Used RIF Installer 13 | . . . . . . . . 1 . 1 . 2 . 1 . 1 . . . . . 1 . 1 . 1 . 1 . . 1 . . . 2 . . Command Fork 2 | . . . . . . . . . . . . . . . . 1 . . . . . . . . . . . . . . . . . . 1 . . Threat Obfuscator 2 | . . . . . . . . . . 1 . . . . . . . . . . . . . . . . . . . . . . . . 1 . . Signal Jammer 1 | . . . . . . . . . . . . . . 1 . . . . . . . . . . . . . . . . . . . . . . . Zone Cloak 1 | . . . . . . . . . . . . . . . . . . . . . . . . . . . . . . . 1 . . . . . . Robot Detection 1 | . . . . . . . . . . . . 1 . . . . . . . . . . . . . . . . . . . . . . . . . Watcher Feeds 1 | . . . . . . . . . . . . . . . . . . . . . . . . 1 . . . . . . . . . . . . . Structural Interface 1 | . . . . . . . . . . . . . . . . . . . . . . 1 . . . . . . . . . . . . . . . Program Shield 1 | . . . . . . . . . . . . 1 . . . . . . . . . . . . . . . . . . . . . . . . . Autooverride 1 | . . . . . . . . . . . . . . . . . . . . . . . . . . . . 1 . . . . . . . . . Crosswire 1 | . . . . . . . . . . . . . . . . . . . . . . . . . . 1 . . . . . . . . . . . Robots Hacked 47 | . . . . . . . . . . . . . . . . . . . . . . . . . . . 1 . 2 . . . 1 1 2 2 38 Non-combat 5 | . . . . . . . . . . . . . . . . . . . . . . . . . . . 1 . . . . . 1 . 1 . 2 Combat 42 | . . . . . . . . . . . . . . . . . . . . . . . . . . . . . 2 . . . . 1 1 2 36 Autooverrided 18 | . . . . . . . . . . . . . . . . . . . . . . . . . . . . . 2 . . . . . 1 2 13 Robot Hacks Applied 48 | . . . . . . . . . . . . . . . . . . . . . . . . . . . 4 . . . . . 1 1 6 . 36 parse_system 1 | . . . . . . . . . . . . . . . . . . . . . . . . . . . . . . . . . 1 . . . . purge_threat 13 | . . . . . . . . . . . . . . . . . . . . . . . . . . . 4 . . . . . . . 6 . 3 link_fov 1 | . . . . . . . . . . . . . . . . . . . . . . . . . . . . . . . . . . . . . 1 focus_fire 1 | . . . . . . . . . . . . . . . . . . . . . . . . . . . . . . . . . . . . . 1 reboot_propulsion 1 | . . . . . . . . . . . . . . . . . . . . . . . . . . . . . . . . . . . . . 1 scatter_targeting 2 | . . . . . . . . . . . . . . . . . . . . . . . . . . . . . . . . . . . . . 2 mark_system 1 | . . . . . . . . . . . . . . . . . . . . . . . . . . . . . . . . . . . . . 1 link_complan 1 | . . . . . . . . . . . . . . . . . . . . . . . . . . . . . . . . . . . . . 1 disrupt_area 1 | . . . . . . . . . . . . . . . . . . . . . . . . . . . . . . . . . . . . . 1 spike_heat 1 | . . . . . . . . . . . . . . . . . . . . . . . . . . . . . . . . . . . . . 1 overload_power 1 | . . . . . . . . . . . . . . . . . . . . . . . . . . . . . . . . . . . . . 1 amplify_resonance 7 | . . . . . . . . . . . . . . . . . . . . . . . . . . . . . . . . . . . . . 7 wipe_record 1 | . . . . . . . . . . . . . . . . . . . . . . . . . . . . . . . . . . . . . 1 disable_weapons 1 | . . . . . . . . . . . . . . . . . . . . . . . . . . . . . . . . . . . . . 1 go_dormant 1 | . . . . . . . . . . . . . . . . . . . . . . . . . . . . . . . . . . . . . 1 overwrite_iff 3 | . . . . . . . . . . . . . . . . . . . . . . . . . . . . . . . . . . . . . 3 streamctrl_high 1 | . . . . . . . . . . . . . . . . . . . . . . . . . . . . . . . . . . 1 . . . formatsys_high 10 | . . . . . . . . . . . . . . . . . . . . . . . . . . . . . . . . . . . . . 10 Relay Couplers Released 24 | . . . . . . . . 4 . . . . . 3 . 4 . . . . . . . 2 . 2 . 5 . . 1 . . . 3 . . Machine Destruction 19 | . . . . . . . . 4 . . . . . 1 . 2 . . . . . . . 2 . 2 . 5 . . . . . . 3 . . Programmers 5 | . . . . . . . . . . . . . . 2 . 2 . . . . . . . . . . . . . . 1 . . . . . . Attached 13 | . . . . . . . . . . . . . . . . 1 . . . . . . . 1 . 2 . 1 . . . . . 1 2 . 5 Crosswired 5 | . . . . . . . . . . . . . . . . . . . . . . . . . . 1 . 1 . . . . . . 3 . . Fabnet Peak Effective % . | . . . . . . . . . . . . . . . . . . . . . . . . . . . . . . . . . . . . . . Robots Rewired 29 | . . . . . . . . 2 . . . 3 . 6 . 2 . 6 . . . . . 3 . 3 . 2 . . . . . . 2 . . Allies Hacked . | . . . . . . . . . . . . . . . . . . . . . . . . . . . . . . . . . . . . . . Hacks Repelled . | . . . . . . . . . . . . . . . . . . . . . . . . . . . . . . . . . . . . . . Allies | -11 -10 -10 -9 -9 -9 -8 -8 -8 -8 -8 -8 -8 -7 -7 -6 -6 -5 -5 -5 -5 -5 -5 -4 -4 -4 -4 -3 -3 -3 -3 -3 -2 -2 -2 -2 -1 -1 -------- Run | Jun Mat Min Mat Min Exi Min Mat Gar Mat Gar Mat Gar Fac Gar Fac Gar Fac Ext Cet Arc Hub Gar Fac Gar Fac Gar Res Gar Res Tes Gar Res Qua Sec Gar Acc Com Total Allies 96 | . . 3 . . . . . 2 . . . 3 . 8 . 2 . 25 5 . . . . 3 . 7 . 2 2 . . . . 2 3 2 27 Largest Group 23 | . . 3 3 . . . . 2 . . . 3 . 8 5 2 1 23 23 18 15 . . 3 3 5 . 2 2 . . . . 2 2 1 5 Highest-Rated Group 1108 | . . 40 40 . . . . 50 . . . 76 . 166 124 296 148 796 1108 990 780 . . 204 204 298 . 97 81 . . . . 304 201 58 331 Highest-Rated Ally 216 | . . 16 16 . . . . 25 . . . 31 . 39 39 148 148 159 159 159 96 . . 68 68 95 . 51 51 . . . . 152 116 58 216 Total Orders 8 | . . . . . . . . . . . . . . . . 4 . . . . 4 . . . . . . . . . . . . . . . . STAY 3 | . . . . . . . . . . . . . . . . . . . . . 3 . . . . . . . . . . . . . . . . ROAM 2 | . . . . . . . . . . . . . . . . 2 . . . . . . . . . . . . . . . . . . . . . FOLLOW 3 | . . . . . . . . . . . . . . . . 2 . . . . 1 . . . . . . . . . . . . . . . . Ally Attacks 558 | . . 5 8 . . . . 1 . . . 1 . 4 37 42 1 91 71 27 49 . . 5 44 49 . 11 13 . . . . 17 26 4 52 Total Damage 19115 | . . 45 113 . . . . 37 . . . . . 47 588 1003 51 2381 1810 464 1546 . . 333 3183 1549 . 171 372 . . . . 768 1366 151 3137 Kills 121 | . . 1 2 . . . . 1 . . . . . . 6 10 1 19 11 4 12 . . 3 20 8 . 1 1 . . . . 3 7 1 10 Allies Corrupted 7 | . . . . . . . . . . . . . . . . . . . . . 2 . . . . . . . . . . . . . 1 . 4 Allies Melted 2 | . . . . . . . . 1 . . . . . . . . . . . . . . . . . . . . . . . . . . . . 1 Intel | -11 -10 -10 -9 -9 -9 -8 -8 -8 -8 -8 -8 -8 -7 -7 -6 -6 -5 -5 -5 -5 -5 -5 -4 -4 -4 -4 -3 -3 -3 -3 -3 -2 -2 -2 -2 -1 -1 ------- Run | Jun Mat Min Mat Min Exi Min Mat Gar Mat Gar Mat Gar Fac Gar Fac Gar Fac Ext Cet Arc Hub Gar Fac Gar Fac Gar Res Gar Res Tes Gar Res Qua Sec Gar Acc Com Robot Analysis Total 16 | . 2 1 5 . . 1 1 . . . 2 . . . 1 . . . . . . . . . . . . . . . . . . . . . 3 Derelict Logs Recovered 3 | . . 2 . 1 . . . . . . . . . . . . . . . . . . . . . . . . . . . . . . . . . Drone Launches . | . . . . . . . . . . . . . . . . . . . . . . . . . . . . . . . . . . . . . . Drone Recoveries . | . . . . . . . . . . . . . . . . . . . . . . . . . . . . . . . . . . . . . . Exploration | -11 -10 -10 -9 -9 -9 -8 -8 -8 -8 -8 -8 -8 -7 -7 -6 -6 -5 -5 -5 -5 -5 -5 -4 -4 -4 -4 -3 -3 -3 -3 -3 -2 -2 -2 -2 -1 -1 ------------- Run | Jun Mat Min Mat Min Exi Min Mat Gar Mat Gar Mat Gar Fac Gar Fac Gar Fac Ext Cet Arc Hub Gar Fac Gar Fac Gar Res Gar Res Tes Gar Res Qua Sec Gar Acc Com Turns Passed 34269 | 116 840 461 1516 602 360 758 425 1970 2435 424 677 1364 421 1321 1131 1101 406 1166 339 110 531 424 601 852 684 1174 233 997 750 1096 757 440 1053 1420 1070 1245 2999 Spaces Moved 22644 | 60 637 451 1129 584 400 647 280 1597 369 326 516 977 323 937 671 682 146 732 178 64 373 254 501 595 430 785 141 682 416 777 480 312 631 827 727 803 2204 Core 3 | 3 . . . . . . . . . . . . . . . . . . . . . . . . . . . . . . . . . . . . . Treads . | . . . . . . . . . . . . . . . . . . . . . . . . . . . . . . . . . . . . . . Legs . | . . . . . . . . . . . . . . . . . . . . . . . . . . . . . . . . . . . . . . Wheels 22641 | 57 637 451 1129 584 400 647 280 1597 369 326 516 977 323 937 671 682 146 732 178 64 373 254 501 595 430 785 141 682 416 777 480 312 631 827 727 803 2204 Hover . | . . . . . . . . . . . . . . . . . . . . . . . . . . . . . . . . . . . . . . Flight . | . . . . . . . . . . . . . . . . . . . . . . . . . . . . . . . . . . . . . . Fastest Speed 50 | 50 90 90 90 90 90 90 90 100 100 100 100 100 100 100 100 100 115 100 100 115 115 115 115 115 115 115 115 115 115 110 110 110 110 110 110 90 90 Average Speed 105 | 88 90 90 90 90 90 90 92 100 100 100 100 100 100 100 100 108 115 114 114 115 115 115 115 115 115 115 115 115 115 113 110 110 110 110 110 109 109 Slowest Speed 130 | 100 90 90 90 90 90 90 105 100 100 100 100 100 100 100 100 115 115 115 115 115 115 115 115 115 115 115 115 115 115 129 110 110 130 110 110 110 110 Overloaded Moves . | . . . . . . . . . . . . . . . . . . . . . . . . . . . . . . . . . . . . . . Propulsion Burnouts . | . . . . . . . . . . . . . . . . . . . . . . . . . . . . . . . . . . . . . . Robots Hopped . | . . . . . . . . . . . . . . . . . . . . . . . . . . . . . . . . . . . . . . Cave-ins Triggered . | . . . . . . . . . . . . . . . . . . . . . . . . . . . . . . . . . . . . . . Exploration Rate (%) 58 | 4 98 98 95 98 91 97 21 98 52 43 42 94 8 94 26 72 4 94 69 73 42 35 14 74 15 93 8 96 26 76 64 19 87 35 94 31 56 Regions Visited 37 Branch Regions 12 Pre-discovered Areas 8 | . 2 2 2 2 . . . . . . . . . . . . . . . . . . . . . . . . . . . . . . . . . Known Exits Taken 19 | . . . . . . . 1 . 1 . 1 . 1 . 1 . 1 1 1 1 1 . 1 . 1 . 1 . 1 1 . 1 1 1 . 1 . Unknown Exits Taken 7 | 1 1 1 1 1 1 1 . . . . . . . . . . . . . . . . . . . . . . . . . . . . . . . Scrap Searched 4 | . . 1 . 2 . 1 . . . . . . . . . . . . . . . . . . . . . . . . . . . . . . . Spaces Dug 194 | . 26 7 10 . . . 1 5 . . . . . . 12 1 . 3 1 . 9 . 7 . 2 . 2 . 5 27 . 9 4 27 . 34 2 Terrain Destroyed 1859 | . 381 173 313 29 . 4 1 61 6 14 5 . . 2 31 15 1 17 4 9 329 7 11 12 37 15 7 6 80 69 4 42 44 60 5 50 15 Melee 13 | . . . . . . . . . . . . . . . 9 . . 3 1 . . . . . . . . . . . . . . . . . . Projectile 591 | . . . 29 15 . 4 1 9 6 4 4 . . 2 22 15 1 14 3 9 40 6 11 12 37 14 7 6 80 69 4 38 44 60 5 5 15 AOE 1244 | . 381 173 284 14 . . . 52 . 10 . . . . . . . . . . 289 . . . . . . . . . . 4 . . . 37 . Terrain Rammed . | . . . . . . . . . . . . . . . . . . . . . . . . . . . . . . . . . . . . . . Walls Destroyed . | . . . . . . . . . . . . . . . . . . . . . . . . . . . . . . . . . . . . . . Machines Disabled . | . . . . . . . . . . . . . . . . . . . . . . . . . . . . . . . . . . . . . . Actions | -11 -10 -10 -9 -9 -9 -8 -8 -8 -8 -8 -8 -8 -7 -7 -6 -6 -5 -5 -5 -5 -5 -5 -4 -4 -4 -4 -3 -3 -3 -3 -3 -2 -2 -2 -2 -1 -1 --------- Run | Jun Mat Min Mat Min Exi Min Mat Gar Mat Gar Mat Gar Fac Gar Fac Gar Fac Ext Cet Arc Hub Gar Fac Gar Fac Gar Res Gar Res Tes Gar Res Qua Sec Gar Acc Com Total 31178 | 92 797 481 1393 615 399 729 389 1796 2352 377 617 1297 408 1222 1074 984 384 981 283 96 434 345 520 705 582 1009 205 841 646 954 683 381 959 1312 978 1109 2749 Wait 4767 | 7 33 14 33 2 . 2 26 43 1909 5 49 175 55 81 337 128 234 89 63 23 14 9 5 12 87 97 53 22 137 94 108 21 183 317 70 142 88 Move 22610 | 59 636 450 1128 583 399 646 279 1596 368 325 515 976 322 936 670 681 145 731 177 63 372 253 500 594 430 784 141 681 415 777 479 311 630 827 726 802 2203 Hop . | . . . . . . . . . . . . . . . . . . . . . . . . . . . . . . . . . . . . . . Pick Up 98 | . 3 . 5 1 . . 5 2 1 . 2 4 2 1 3 6 2 . . 1 3 3 1 1 3 4 . 6 2 2 . 1 10 4 8 1 11 Fast Attach 150 | 8 4 . 12 1 . 3 4 2 3 . 8 4 2 2 1 2 . 1 5 . 2 . 4 1 3 2 . 7 6 18 . 1 10 14 1 6 13 Attach 30 | . 2 . . . . . 1 . 1 . . . . . 1 2 . . . . . . . . 1 . . 1 . . . 1 5 8 . 1 6 Detach 13 | . . . 2 . . . . . . . . . 1 . . . . . . . . . . . 1 . . . . . . . 1 7 . 1 . Swap 201 | . 2 . 4 . . 8 3 11 4 4 4 14 3 21 15 10 . 8 3 3 3 4 1 . . 1 2 3 3 2 2 7 13 9 3 4 27 Drop 186 | 1 6 . 10 1 . 4 8 3 4 . 9 8 3 2 2 7 2 . 5 1 2 2 5 1 6 5 . 11 7 18 . . 14 12 7 5 15 Fire 1700 | 17 84 17 142 19 . 51 26 85 32 26 24 47 11 60 26 55 1 43 9 2 29 32 4 44 34 51 9 56 49 43 30 29 51 72 83 125 182 Melee 70 | . . . . . . . . . . . . 11 . 21 9 . . 14 9 . . . . . . . . . . . . . 4 2 . . . Ram 1 | . . . . . . . . . . . . . . . . . . . . . . . . . 1 . . . . . . . . . . . . Kick . | . . . . . . . . . . . . . . . . . . . . . . . . . . . . . . . . . . . . . . Crush . | . . . . . . . . . . . . . . . . . . . . . . . . . . . . . . . . . . . . . . Escape Stasis 387 | . . . . . . . . 4 . 4 . 6 . 13 . 40 . 24 . . . 16 . 16 . 32 . 16 8 . 40 . . . 56 8 104 Rewire 162 | . . . . . . . . 4 . . . 17 . 45 . 13 . 36 . . . . . 14 . 14 . 13 . . . . . . 6 . . Trap . | . . . . . . . . . . . . . . . . . . . . . . . . . . . . . . . . . . . . . . Miscellaneous 803 | . 27 . 57 8 . 15 37 46 30 13 6 35 9 40 10 40 . 35 12 3 9 26 . 22 16 19 . 25 19 . 24 10 38 40 18 14 100 Route ------- -11/Junkyard -10/Materials (discovered 4 exits: *Mat x3 / *Min) -10/Mines (discovered 2 exits: *Mat x2) -9/Materials (discovered 6 exits: *Mat x3 / [*Min] / [*Sto x2]) -9/Mines (discovered 3 exits: *Mat x2 / *Exi) -9/Exiles (discovered 2 exits: *Min x2) -8/Mines (discovered 2 exits: *Mat x2) -8/Materials -8/Garrison (discovered 3 exits: *Mat x3) -8/Materials (discovered 2 exits: *Fac / Gar) -8/Garrison (discovered 4 exits: *Fac x3 / *Mat) -8/Materials (discovered 2 exits: *Fac / Gar) -8/Garrison (discovered 3 exits: *Fac x3) -7/Factory (discovered 3 exits: *Fac / *Low / Gar) -7/Garrison (discovered 3 exits: *Fac x3) -6/Factory (discovered 3 exits: Low x2 / Gar) -6/Garrison (discovered 3 exits: *Fac x3) -5/Factory -5/Extension (discovered 3 exits: *Fac x2 / *Cet) -5/Cetus (discovered 2 exits: *Fac / *Arc) -5/Archives (discovered 3 exits: *Fac / *Hub x2) -5/Hub_04(d) (discovered 3 exits: *Fac x2 / Gar) -5/Garrison (discovered 3 exits: *Fac x3) -4/Factory (discovered 5 exits: *Res x2 / Upp x2 / Gar) -4/Garrison (discovered 4 exits: *Res x3 / *Fac) -4/Factory -4/Garrison (discovered 3 exits: *Res x3) -3/Research -3/Garrison (discovered 3 exits: *Res x3) -3/Research (discovered 3 exits: *Res / *Arm / *Tes) -3/Testing (discovered 2 exits: *Res / Gar) -3/Garrison (discovered 3 exits: *Res x3) -2/Research (discovered 3 exits: Acc / *Qua x2) -2/Quarantine (discovered 2 exits: *Acc / *Sec) -2/Section 7 (discovered 2 exits: Acc / Gar) -2/Garrison (discovered 3 exits: *Acc x3) -1/Access (discovered 2 exits: Sur / *Com) -1/Command To Epsilon Eridani History --------- Turn | Location | Event 2 | -11/Junkyard | Met Revision 17 6 | -11/Junkyard | Upgraded with Propulsion slot (x1) 6 | -11/Junkyard | Upgraded with Utility slot (x1) 6 | -11/Junkyard | Upgraded with Weapon slot (x1) 16 | -11/Junkyard | Discovered new exit (range 16) 117 | -11/Junkyard | Entered Materials 208 | -10/Materials | Discovered new exit (range 6) 290 | -10/Materials | Discovered new exit (range 5) 303 | -10/Materials | Build established: Mutant 388 | -10/Materials | Central database locked down 435 | -10/Materials | Reached level 2 539 | -10/Materials | Discovered new exit (range 14) 596 | -10/Materials | Reached level 3 698 | -10/Materials | Discovered new exit (range 8) 724 | -10/Materials | Upgraded with Weapon slot (x1) 724 | -10/Materials | Upgraded with Utility slot (x1) 756 | -10/Materials | Reached level 4 957 | -10/Materials | Entered Mines 959 | -10/Mines | Reached level 5 981 | -10/Mines | Met a Derelict bent on vengeance 1020 | -10/Mines | Discovered new exit (range 13) 1050 | -10/Mines | Assisted by bots powering up and referring to "LRC-V3" 1073 | -10/Mines | Discovered new exit (range 5) 1162 | -10/Mines | Learned location of Mines (-8) 1233 | -10/Mines | Assembled infested the area 1238 | -10/Mines | Assisted by a Guerilla fighting off Assembled 1263 | -10/Mines | Destroyed 19 combat bots 1418 | -10/Mines | Entered Materials 1418 | -9/Materials | Accompanied by 3 allies 1420 | -9/Materials | Reached level 6 1433 | -9/Materials | Discovered new exit (range 13) 1440 | -9/Materials | Discovered new exit (range 18) 1476 | -9/Materials | Reached level 7 1574 | -9/Materials | Discovered new exit (range 18) 1760 | -9/Materials | Reached level 8 1818 | -9/Materials | First assault squad dispatched 1951 | -9/Materials | Upgraded with Weapon slot (x1) 2052 | -9/Materials | Discovered new exit (range 18) 2112 | -9/Materials | Reached level 9 2241 | -9/Materials | Discovered new exit (range 23) 2260 | -9/Materials | Discovered new exit (range 11) 2509 | -9/Materials | Reached level 10 2509 | -9/Materials | High security lockdown imminent 2589 | -9/Materials | High security lockdown engaged 2752 | -9/Materials | Sterilization system engaged 2752 | -9/Materials | Non-combat units ordered to evacuate 2781 | -9/Materials | Destroyed 19 combat bots 2781 | -9/Materials | Reached level 11 2808 | -9/Materials | Core integrity fell below 50% 2838 | -9/Materials | Destroyed 14 combat bots 2852 | -9/Materials | Combat units ordered to evacuate 2934 | -9/Materials | Entered Mines 3038 | -9/Mines | Discovered new exit (range 13) 3067 | -9/Mines | Received a Rocket Launcher from a helpful Derelict 3115 | -9/Mines | Joined a pair of Derelicts in attacking an 0b10 outpost 3134 | -9/Mines | Upgraded with Utility slot (x1) 3175 | -9/Mines | Learned location of Storage (-9) 3190 | -9/Mines | Excavation squad dispatched 3190 | -9/Mines | A large section of the Mines collapsed 3206 | -9/Mines | Deemed a non-threat by the Exiles lab entrance 3206 | -9/Mines | Discovered new exit (range 5) 3290 | -9/Mines | Discovered new exit (range 14) 3421 | -9/Mines | Build established: Gunner 3536 | -9/Mines | Entered Exiles 3536 | -9/Exiles | Found Exiles lab abandoned 3548 | -9/Exiles | Discovered new exit (range 16) 3884 | -9/Exiles | Discovered new exit (range 15) 3896 | -9/Exiles | Entered Mines 3958 | -8/Mines | Reached level 12 4114 | -8/Mines | Discovered new exit (range 13) 4172 | -8/Mines | Upgraded with Utility slot (x1) 4242 | -8/Mines | Discovered new exit (range 7) 4654 | -8/Mines | Entered Materials 4656 | -8/Materials | Reached level 13 4675 | -8/Materials | Core integrity fell below 50% 4827 | -8/Materials | Upgraded with Weapon slot (x1) 4994 | -8/Materials | Identified exit to Garrison 5011 | -8/Materials | Upgraded with Propulsion slot (x2) 5079 | -8/Materials | Entered Garrison 5120 | -8/Garrison | Triggered checkpoint 5142 | -8/Garrison | Garrison Relay disabled 5190 | -8/Garrison | Reached level 14 5272 | -8/Garrison | Triggered checkpoint 5284 | -8/Garrison | Destroyed 11 combat bots 5297 | -8/Garrison | Discovered new exit (range 8) 5328 | -8/Garrison | Triggered checkpoint 5427 | -8/Garrison | Triggered checkpoint 5486 | -8/Garrison | Triggered checkpoint 5616 | -8/Garrison | Discovered new exit (range 3) 5641 | -8/Garrison | Learned Materials security intel 5712 | -8/Garrison | Triggered checkpoint 5754 | -8/Garrison | Triggered checkpoint 5848 | -8/Garrison | Discovered new exit (range 12) 6113 | -8/Garrison | Build established: Mutant 6276 | -8/Garrison | Phase Generator disabled 6583 | -8/Garrison | Spotted B-75 Beast 6609 | -8/Garrison | Destroyed B-75 Beast 6609 | -8/Garrison | Garrison Relay disabled 6668 | -8/Garrison | Installed Relay Interface Framework 6711 | -8/Garrison | Build established: Gunner 6747 | -8/Garrison | Upgraded with Weapon slot (x1) 7034 | -8/Garrison | Build established: Executioner 7049 | -8/Garrison | Entered Materials 7449 | -8/Materials | First assault squad dispatched 7505 | -8/Materials | Reached level 15 7584 | -8/Materials | Build established: Scavenger-Executioner 8381 | -8/Materials | Discovered new exit (range 17) 8389 | -8/Materials | Upgraded with Utility slot (x1) 8398 | -8/Materials | Identified exit to Factory 8523 | -8/Materials | Identified exit to Garrison 9484 | -8/Materials | Entered Garrison 9493 | -8/Garrison | Triggered checkpoint 9538 | -8/Garrison | Discovered new exit (range 5) 9562 | -8/Garrison | Identified exit to Materials 9692 | -8/Garrison | Triggered checkpoint 9711 | -8/Garrison | Discovered exit to Factory (range 72) 9711 | -8/Garrison | Discovered exit to Factory (range 65) 9711 | -8/Garrison | Discovered exit to Factory (range 49) 9711 | -8/Garrison | Discovered exit to Materials (range 28) 9763 | -8/Garrison | Triggered checkpoint 9827 | -8/Garrison | Expanded RIF knowledge: Threat Obfuscation 9908 | -8/Garrison | Entered Materials 10309 | -8/Materials | Discovered exit to Factory (range 14) 10326 | -8/Materials | Identified exit to Garrison 10585 | -8/Materials | Entered Garrison 10656 | -8/Garrison | Triggered checkpoint 10757 | -8/Garrison | Expanded RIF knowledge: Program Shield 10817 | -8/Garrison | Triggered checkpoint 10821 | -8/Garrison | Build established: Executioner 10873 | -8/Garrison | Discovered exit to Factory (range 12) 10929 | -8/Garrison | Expanded RIF knowledge: Robot Detection 10957 | -8/Garrison | Triggered checkpoint 11150 | -8/Garrison | Triggered checkpoint 11235 | -8/Garrison | Triggered checkpoint 11321 | -8/Garrison | Discovered exit to Factory (range 12) 11530 | -8/Garrison | Spotted B-75 Beast 11545 | -8/Garrison | Destroyed B-75 Beast 11642 | -8/Garrison | Triggered checkpoint 11688 | -8/Garrison | Discovered exit to Factory (range 14) 11728 | -8/Garrison | Triggered checkpoint 11761 | -8/Garrison | Learned Factory security intel 11785 | -8/Garrison | Discovered exit to Factory (range 34) 11785 | -8/Garrison | Discovered exit to Factory (range 22) 11785 | -8/Garrison | Discovered exit to Factory (range 59) 11949 | -8/Garrison | Entered Factory 11951 | -7/Factory | Reached level 16 12000 | -7/Factory | Discovered new exit (range 12) 12116 | -7/Factory | Repaired Broken Enh. Autogun 12155 | -7/Factory | Identified exit to Factory 12260 | -7/Factory | Identified exit to Garrison 12287 | -7/Factory | Discovered new exit (range 11) 12299 | -7/Factory | Identified exit to Lower Caves 12370 | -7/Factory | Entered Garrison 12403 | -7/Garrison | Triggered checkpoint 12478 | -7/Garrison | Triggered checkpoint 12612 | -7/Garrison | Discovered exit to Factory (range 16) 12761 | -7/Garrison | Triggered checkpoint 12977 | -7/Garrison | Garrison Relay disabled 12977 | -7/Garrison | Reached level 17 12999 | -7/Garrison | Triggered checkpoint 13095 | -7/Garrison | Rescued a captive Derelict 13096 | -7/Garrison | Rescued a captive Derelict 13144 | -7/Garrison | Discovered exit to Factory (range 11) 13234 | -7/Garrison | Expanded RIF knowledge: Signal Jamming 13365 | -7/Garrison | Discovered exit to Factory (range 6) 13368 | -7/Garrison | Triggered checkpoint 13572 | -7/Garrison | Triggered checkpoint 13632 | -7/Garrison | Upgraded with Power slot (x1) 13691 | -7/Garrison | Entered Factory 13691 | -6/Factory | Accompanied by 5 allies 13900 | -6/Factory | Reached level 18 13900 | -6/Factory | Upgraded with Utility slot (x1) 14041 | -6/Factory | First assault squad dispatched 14126 | -6/Factory | Repaired Broken Enh. Autogun 14389 | -6/Factory | Identified exit to Lower Caves 14815 | -6/Factory | Build established: Assassin 14818 | -6/Factory | Identified exit to Garrison 14822 | -6/Factory | Entered Garrison 14853 | -6/Garrison | Expanded RIF knowledge: Command Fork 14877 | -6/Garrison | Triggered checkpoint 14944 | -6/Garrison | Spotted B-86 Titan 14955 | -6/Garrison | Rewired B-90 Cyclops 14969 | -6/Garrison | Allies destroyed B-86 Titan 14974 | -6/Garrison | Rewired B-90 Cyclops 15003 | -6/Garrison | Reached level 19 15058 | -6/Garrison | Triggered checkpoint 15122 | -6/Garrison | Discovered new exit (range 13) 15130 | -6/Garrison | Build established: Executioner 15133 | -6/Garrison | Identified exit to Factory 15186 | -6/Garrison | Triggered checkpoint 15271 | -6/Garrison | Triggered checkpoint 15282 | -6/Garrison | Triggered checkpoint 15302 | -6/Garrison | Triggered checkpoint 15311 | -6/Garrison | Upgraded with Weapon slot (x1) 15340 | -6/Garrison | Learned Factory security intel 15378 | -6/Garrison | Discovered exit to Factory (range 10) 15409 | -6/Garrison | Triggered checkpoint 15549 | -6/Garrison | Triggered checkpoint 15588 | -6/Garrison | Garrison Relay disabled 15620 | -6/Garrison | Discovered exit to Factory (range 17) 15923 | -6/Garrison | Entered Factory 15923 | -5/Factory | Accompanied by 1 ally 15925 | -5/Factory | Reached level 20 15992 | -5/Factory | Discovered new exit (range 12) 16045 | -5/Factory | Identified exit to Extension 16223 | -5/Factory | First assault squad dispatched 16329 | -5/Factory | Entered Extension 16329 | -5/Extension | Accompanied by 1 ally 16331 | -5/Extension | Reached level 21 16436 | -5/Extension | Spotted B-75 Beast 16471 | -5/Extension | Allies destroyed B-75 Beast 16486 | -5/Extension | Spotted B-75 Beast 16497 | -5/Extension | Discovered new exit (range 16) 16506 | -5/Extension | Destroyed B-75 Beast 16611 | -5/Extension | Rescued a captive Derelict 16612 | -5/Extension | Rescued a captive Derelict 16645 | -5/Extension | Rescued a captive Derelict 16646 | -5/Extension | Rescued a captive Derelict 16697 | -5/Extension | Rescued a captive Derelict 16698 | -5/Extension | Rescued a captive Derelict 16752 | -5/Extension | Rescued a captive Derelict 16759 | -5/Extension | Rescued a captive Derelict 16801 | -5/Extension | Rescued a captive Derelict 16802 | -5/Extension | Rescued a captive Derelict 16896 | -5/Extension | Reached level 22 16900 | -5/Extension | Rescued a captive Derelict 16901 | -5/Extension | Rescued a captive Derelict 16979 | -5/Extension | Rescued a captive Derelict 17071 | -5/Extension | Rescued A7 17124 | -5/Extension | Rescued a captive Derelict 17124 | -5/Extension | Rescued a captive Derelict 17209 | -5/Extension | Rescued a captive Derelict 17284 | -5/Extension | Rescued a captive Derelict 17285 | -5/Extension | Rescued a captive Derelict 17311 | -5/Extension | Discovered new exit (range 10) 17312 | -5/Extension | Discovered new exit (range 6) 17344 | -5/Extension | Build established: Commander-Executioner 17459 | -5/Extension | Identified exit to Cetus 17462 | -5/Extension | Identified exit to Factory 17495 | -5/Extension | Entered Cetus 17495 | -5/Cetus | Accompanied by 23 allies (A7) 17500 | -5/Cetus | Acquired a Cetus Manufacturing Module code from A7 17511 | -5/Cetus | Spotted Cetus Guard 17511 | -5/Cetus | Spotted Cetus Guard 17512 | -5/Cetus | Spotted Cetus Guard 17520 | -5/Cetus | Spotted Cetus Guard 17521 | -5/Cetus | Allies destroyed Cetus Guard 17524 | -5/Cetus | Destroyed Cetus Guard 17526 | -5/Cetus | Destroyed Cetus Guard 17526 | -5/Cetus | Destroyed Cetus Guard 17577 | -5/Cetus | Started Cetus Manufacturing Module 17586 | -5/Cetus | Reached level 23 17602 | -5/Cetus | Manufactured an Enhanced Grunt 17620 | -5/Cetus | Escorted A7 to Cetus Mainframe 17627 | -5/Cetus | Manufactured an Enhanced Grunt 17635 | -5/Cetus | Discovered new exit (range 18) 17652 | -5/Cetus | Manufactured an Enhanced Grunt 17657 | -5/Cetus | Spotted Cetus Guard 17658 | -5/Cetus | Spotted Cetus Guard 17660 | -5/Cetus | Spotted Cetus Guard 17661 | -5/Cetus | Destroyed Cetus Guard 17669 | -5/Cetus | Destroyed Cetus Guard 17671 | -5/Cetus | Allies destroyed Cetus Guard 17672 | -5/Cetus | Spotted Cetus Guard 17674 | -5/Cetus | Allies destroyed Cetus Guard 17675 | -5/Cetus | Discovered exit to Factory (range 18) 17677 | -5/Cetus | Manufactured an Enhanced Grunt 17684 | -5/Cetus | Met Revision 17 17702 | -5/Cetus | Manufactured an Enhanced Grunt 17745 | -5/Cetus | Identified exit to Archives 17834 | -5/Cetus | Entered Archives 17834 | -5/Archives | Accompanied by 18 allies (A7) 17839 | -5/Archives | Received a hacking code to weaken MAIN.C 17873 | -5/Archives | Discovered exit to Factory (range 17) 17901 | -5/Archives | Discovered new exit (range 18) 17910 | -5/Archives | Discovered new exit (range 18) 17928 | -5/Archives | Identified exit to Hub_04(d) 17944 | -5/Archives | Entered Hub_04(d) 17944 | -5/Hub_04(d) | Accompanied by 15 allies 17989 | -5/Hub_04(d) | Discovered exit to Factory (range 13) 17994 | -5/Hub_04(d) | Upgraded with Utility slot (x1) 18261 | -5/Hub_04(d) | Reached level 24 18284 | -5/Hub_04(d) | Discovered exit to Factory (range 12) 18362 | -5/Hub_04(d) | Network Hub disabled 18368 | -5/Hub_04(d) | Network Hub disabled 18398 | -5/Hub_04(d) | Spotted Lightning 18398 | -5/Hub_04(d) | Spotted Lightning 18398 | -5/Hub_04(d) | Spotted Lightning 18399 | -5/Hub_04(d) | Destroyed Lightning 18401 | -5/Hub_04(d) | Destroyed Lightning 18411 | -5/Hub_04(d) | Destroyed Lightning 18418 | -5/Hub_04(d) | Found Prototype Device 18418 | -5/Hub_04(d) | Identified Exp. EM Disruption Field 18425 | -5/Hub_04(d) | Found Prototype Device 18426 | -5/Hub_04(d) | Identified Exp. Phase Shifter 18471 | -5/Hub_04(d) | Identified exit to Garrison 18475 | -5/Hub_04(d) | Entered Garrison 18496 | -5/Garrison | Triggered checkpoint 18547 | -5/Garrison | Discovered exit to Factory (range 40) 18547 | -5/Garrison | Discovered exit to Factory (range 85) 18547 | -5/Garrison | Discovered exit to Factory (range 84) 18618 | -5/Garrison | Triggered checkpoint 18618 | -5/Garrison | Triggered checkpoint 18636 | -5/Garrison | Spotted B-75 Beast 18644 | -5/Garrison | Destroyed B-75 Beast 18707 | -5/Garrison | Expanded RIF knowledge: Structural Interface 18824 | -5/Garrison | Triggered checkpoint 18869 | -5/Garrison | Found Relay Coupler [Proto] 18871 | -5/Garrison | Found Relay Coupler [Proto] 18873 | -5/Garrison | Found Relay Coupler [Proto] 18899 | -5/Garrison | Entered Factory 18901 | -4/Factory | Reached level 25 18977 | -4/Factory | Discovered new exit (range 8) 18984 | -4/Factory | Identified exit to Research 19110 | -4/Factory | Build established: Scavenger-Executioner 19283 | -4/Factory | Identified exit to Upper Caves 19324 | -4/Factory | Found Prototype Processor 19324 | -4/Factory | Identified Exp. Signal Interpreter 19399 | -4/Factory | First assault squad dispatched 19471 | -4/Factory | Discovered exit to Research (range 18) 19481 | -4/Factory | Identified exit to Garrison 19500 | -4/Factory | Entered Garrison 19506 | -4/Garrison | Triggered checkpoint 19547 | -4/Garrison | Discovered new exit (range 3) 19549 | -4/Garrison | Identified exit to Factory 19604 | -4/Garrison | Triggered checkpoint 19660 | -4/Garrison | Spotted B-86 Titan 19684 | -4/Garrison | Destroyed B-86 Titan 19695 | -4/Garrison | Triggered checkpoint 19714 | -4/Garrison | Triggered checkpoint 19724 | -4/Garrison | Triggered checkpoint 19754 | -4/Garrison | Destroyed 16 combat bots 19854 | -4/Garrison | Triggered checkpoint 19863 | -4/Garrison | Discovered exit to Research (range 13) 19998 | -4/Garrison | Triggered checkpoint 20068 | -4/Garrison | Discovered exit to Research (range 26) 20068 | -4/Garrison | Discovered exit to Research (range 44) 20068 | -4/Garrison | Discovered exit to Research (range 55) 20068 | -4/Garrison | Discovered exit to Factory (range 77) 20149 | -4/Garrison | Expanded RIF knowledge: Watcher Feeds 20149 | -4/Garrison | Reached level 26 20167 | -4/Garrison | Upgraded with Utility slot (x1) 20235 | -4/Garrison | Garrison Relay disabled 20352 | -4/Garrison | Entered Factory 20352 | -4/Factory | Accompanied by 3 allies 20451 | -4/Factory | Spotted B-86 Titan 20487 | -4/Factory | Destroyed B-86 Titan 20628 | -4/Factory | First assault squad dispatched 20800 | -4/Factory | Fabricated Enh. Autogun (x1) 20907 | -4/Factory | Garrison activated, responded to threat 20984 | -4/Factory | Destroyed 11 combat bots 21036 | -4/Factory | Identified exit to Garrison 21036 | -4/Factory | Entered Garrison 21094 | -4/Garrison | Triggered checkpoint 21133 | -4/Garrison | Triggered checkpoint 21188 | -4/Garrison | Found embedded Infiltrators 21318 | -4/Garrison | Triggered checkpoint 21336 | -4/Garrison | Triggered checkpoint 21348 | -4/Garrison | Triggered checkpoint 21427 | -4/Garrison | Reached level 27 21503 | -4/Garrison | Expanded RIF knowledge: Crosswire 21513 | -4/Garrison | Discovered exit to Research (range 15) 21609 | -4/Garrison | Triggered checkpoint 21644 | -4/Garrison | Garrison Relay disabled 21689 | -4/Garrison | Rescued a captive Derelict 21689 | -4/Garrison | Rescued a captive Derelict 21820 | -4/Garrison | Triggered checkpoint 21845 | -4/Garrison | Spotted B-86 Titan 21861 | -4/Garrison | Discovered exit to Research (range 8) 21881 | -4/Garrison | Triggered checkpoint 22058 | -4/Garrison | Discovered exit to Research (range 10) 22119 | -4/Garrison | Spotted B-86 Titan 22146 | -4/Garrison | Triggered checkpoint 22210 | -4/Garrison | Entered Research 22406 | -3/Research | Garrison activated, responded to threat 22443 | -3/Research | Identified exit to Garrison 22443 | -3/Research | Entered Garrison 22443 | -3/Garrison | Reached level 28 22445 | -3/Garrison | Upgraded with Utility slot (x1) 22574 | -3/Garrison | Triggered checkpoint 22590 | -3/Garrison | Expanded RIF knowledge: Autooverride 22673 | -3/Garrison | Learned Research security intel 22685 | -3/Garrison | Spotted B-86 Titan 22692 | -3/Garrison | Triggered checkpoint 22696 | -3/Garrison | Destroyed B-86 Titan 22769 | -3/Garrison | Heavy support dispatched to Research 22837 | -3/Garrison | Found Relay Coupler [Proto] 22839 | -3/Garrison | Found Relay Coupler [Proto] 22842 | -3/Garrison | Found Relay Coupler [Proto] 22844 | -3/Garrison | Found Relay Coupler [Proto] 22864 | -3/Garrison | Heavy support dispatched to Research 22881 | -3/Garrison | Build established: Botlord-Executioner 22888 | -3/Garrison | Discovered new exit (range 16) 22904 | -3/Garrison | Identified exit to Research 22924 | -3/Garrison | Triggered checkpoint 22939 | -3/Garrison | Garrison Relay disabled 23067 | -3/Garrison | Triggered checkpoint 23113 | -3/Garrison | Discovered exit to Research (range 10) 23153 | -3/Garrison | Triggered checkpoint 23192 | -3/Garrison | Garrison Relay disabled 23236 | -3/Garrison | Triggered checkpoint 23314 | -3/Garrison | Discovered exit to Research (range 16) 23333 | -3/Garrison | Triggered checkpoint 23351 | -3/Garrison | Garrison Relay disabled 23351 | -3/Garrison | Reached level 29 23418 | -3/Garrison | Upgraded with Power slot (x1) 23440 | -3/Garrison | Entered Research 23440 | -3/Research | Accompanied by 1 ally 23690 | -3/Research | First assault squad dispatched 23874 | -3/Research | Discovered new exit (range 15) 23893 | -3/Research | Identified exit to Armory 23936 | -3/Research | Discovered new exit (range 18) 23955 | -3/Research | Identified exit to Research 23994 | -3/Research | Discovered new exit (range 20) 24054 | -3/Research | Identified exit to Testing 24063 | -3/Research | Destroyed 7 combat bots 24095 | -3/Research | Spotted B-86 Titan 24102 | -3/Research | Destroyed B-86 Titan 24190 | -3/Research | Entered Testing 24208 | -3/Testing | Found Prototype Device 24208 | -3/Testing | Identified Exp. Hardlight Generator 24619 | -3/Testing | Spotted PG-YMC4RKHLQE 24630 | -3/Testing | Destroyed PG-YMC4RKHLQE 24651 | -3/Testing | Found Prototype Device 24651 | -3/Testing | Identified Exp. Thermal Shield 24662 | -3/Testing | Found Prototype Processor 24662 | -3/Testing | Identified Exp. Targeting Computer 24715 | -3/Testing | Discovered exit to Research (range 21) 24997 | -3/Testing | Found Prototype Processor 24998 | -3/Testing | Identified Exp. Melee Analysis Suite 25001 | -3/Testing | Found Prototype Processor 25001 | -3/Testing | Identified Exp. Core Analyzer 25286 | -3/Testing | Identified exit to Garrison 25286 | -3/Testing | Entered Garrison 25288 | -3/Garrison | Reached level 30 25414 | -3/Garrison | Spotted B-86 Titan 25503 | -3/Garrison | Destroyed B-86 Titan 25566 | -3/Garrison | Triggered checkpoint 25624 | -3/Garrison | Discovered exit to Research (range 15) 25752 | -3/Garrison | Triggered checkpoint 25834 | -3/Garrison | Discovered exit to Research (range 68) 25834 | -3/Garrison | Discovered exit to Research (range 15) 25834 | -3/Garrison | Discovered exit to Research (range 62) 25888 | -3/Garrison | Triggered checkpoint 25984 | -3/Garrison | Expanded RIF knowledge: Zone Cloak 26043 | -3/Garrison | Entered Research 26058 | -2/Research | Identified exit to Quarantine 26058 | -2/Research | Discovered new exit (range 15) 26242 | -2/Research | Spotted B-90 Cyclops 26303 | -2/Research | Reached level 31 26372 | -2/Research | Found Prototype Processor 26373 | -2/Research | Identified Exp. Terrain Scan Processor 26483 | -2/Research | Entered Quarantine 26499 | -2/Quarantine | Found Prototype Processor 26505 | -2/Quarantine | Identified Spectral Analyzer 26566 | -2/Quarantine | Upgraded with Utility slot (x1) 26712 | -2/Quarantine | Found Alien Artifact 26903 | -2/Quarantine | Discovered new exit (range 17) 26926 | -2/Quarantine | Cryocooling Duct disabled 26941 | -2/Quarantine | Ambient heat levels rising (+20) 26941 | -2/Quarantine | Non-combat units ordered to evacuate 27159 | -2/Quarantine | Identified Subatomic Replicator 27159 | -2/Quarantine | Used Subatomic Replicator to replicate Enh. Autogun 27175 | -2/Quarantine | Met incapacitated Sigix Warrior 27175 | -2/Quarantine | Lockdown squad dispatched 27175 | -2/Quarantine | Reached level 32 27196 | -2/Quarantine | Spotted Lightning 27234 | -2/Quarantine | Found Alien Impact Weapon 27361 | -2/Quarantine | Identified Core Stripper 27367 | -2/Quarantine | Spotted Fortress 27395 | -2/Quarantine | Destroyed Fortress 27418 | -2/Quarantine | Found Prototype Device 27419 | -2/Quarantine | Identified Exp. Force Field 27423 | -2/Quarantine | Found Prototype Reactor 27423 | -2/Quarantine | Identified Vortex Chain Reactor 27530 | -2/Quarantine | Discovered new exit (range 7) 27535 | -2/Quarantine | Identified exit to Section 7 27536 | -2/Quarantine | Entered Section 7 27552 | -2/Section 7 | Found Alien Artifact 27552 | -2/Section 7 | Identified Integrated Reactor 27552 | -2/Section 7 | Installed Integrated Reactor, increased core energy generation (+10) 27568 | -2/Section 7 | Identified exit to Access 27579 | -2/Section 7 | Spotted S7 Guard 27646 | -2/Section 7 | Found Alien Artifact 27646 | -2/Section 7 | Identified Core Membrane 27646 | -2/Section 7 | Installed Core Membrane, gained immunity to corruption 27730 | -2/Section 7 | Found Alien Artifact 27730 | -2/Section 7 | Identified Integrated Dissipator 27730 | -2/Section 7 | Installed Integrated Dissipator, increased core heat dissipation (+20) 28178 | -2/Section 7 | Spotted Alpha 7 28181 | -2/Section 7 | Spotted Alpha 7 28193 | -2/Section 7 | Hijacked Alpha 7 control node with streamctrl_high 28193 | -2/Section 7 | Hijacked Alpha 7 control node with streamctrl_high 28205 | -2/Section 7 | Spotted S7 Guard 28216 | -2/Section 7 | Destroyed S7 Guard 28233 | -2/Section 7 | Found Alien Artifact 28233 | -2/Section 7 | Identified Integrated Thermoelectric Network 28233 | -2/Section 7 | Installed Integrated Thermoelectric Network, gained heat-energy exchange potential 28236 | -2/Section 7 | Found Prototype Protection 28236 | -2/Section 7 | Identified Hvy. Regenerative Plating 28289 | -2/Section 7 | Spotted B-99 Colossus 28324 | -2/Section 7 | Allies destroyed B-99 Colossus 28335 | -2/Section 7 | Destroyed Alpha 7 28347 | -2/Section 7 | Found Prototype Device 28347 | -2/Section 7 | Identified Exp. ECM Suite 28351 | -2/Section 7 | Found Prototype Processor 28351 | -2/Section 7 | Identified Exp. Target Analyzer 28419 | -2/Section 7 | Found Integrated Reactor 28419 | -2/Section 7 | Installed Integrated Reactor, increased core energy generation (+10) 28484 | -2/Section 7 | Found Alien Artifact 28484 | -2/Section 7 | Identified LRC Armor 28484 | -2/Section 7 | Installed LRC Armor, increased core integrity (+250) 28719 | -2/Section 7 | Build established: Scavenger-Mutant 28751 | -2/Section 7 | Destroyed Alpha 7 28764 | -2/Section 7 | Found Antimissile System 28948 | -2/Section 7 | Reached level 33 28956 | -2/Section 7 | Identified exit to Garrison 28956 | -2/Section 7 | Entered Garrison 28956 | -2/Garrison | Spotted B-86 Titan 28978 | -2/Garrison | Rewired B-86 Titan 28988 | -2/Garrison | Rewired B-75 Beast 28993 | -2/Garrison | Allies destroyed B-86 Titan 29031 | -2/Garrison | Heavy support dispatched to Access 29112 | -2/Garrison | Garrison Relay disabled 29161 | -2/Garrison | Heavy support dispatched to Access 29163 | -2/Garrison | Spotted B-90 Cyclops 29169 | -2/Garrison | Destroyed B-90 Cyclops 29176 | -2/Garrison | Triggered checkpoint 29229 | -2/Garrison | Found Antimissile System 29267 | -2/Garrison | Expanded RIF knowledge: Command Fork 29282 | -2/Garrison | Discovered exit to Access (range 11) 29305 | -2/Garrison | H-XX Assembler disabled 29353 | -2/Garrison | Triggered checkpoint 29384 | -2/Garrison | Garrison Relay disabled 29497 | -2/Garrison | Destroyed 9 combat bots 29623 | -2/Garrison | Discovered exit to Access (range 4) 29650 | -2/Garrison | Triggered checkpoint 29739 | -2/Garrison | Triggered checkpoint 29828 | -2/Garrison | Triggered checkpoint 29869 | -2/Garrison | Expanded RIF knowledge: Threat Obfuscation 29914 | -2/Garrison | Discovered exit to Access (range 13) 30026 | -2/Garrison | Entered Access 30028 | -1/Access | Reached level 34 30040 | -1/Access | Build established: Botlord-Executioner 30077 | -1/Access | Upgraded with Utility slot (x1) 30104 | -1/Access | Energy Cycler disabled 30241 | -1/Access | Discovered new exit (range 17) 30949 | -1/Access | Discovered new exit (range 20) 30972 | -1/Access | Found Prototype Reactor 30972 | -1/Access | Identified Zero-point Reactor 30978 | -1/Access | Found Zero-point Reactor 30981 | -1/Access | Found Prototype Device 30981 | -1/Access | Identified System Purifier 31266 | -1/Access | Identified exit to Command 31271 | -1/Access | Entered Command 31273 | -1/Command | Reached level 35 31574 | -1/Command | Spotted M Guard 31574 | -1/Command | Spotted M Guard 31574 | -1/Command | Spotted Combat Programmer 31575 | -1/Command | Spotted Combat Programmer 31585 | -1/Command | Destroyed Combat Programmer 31607 | -1/Command | Destroyed Combat Programmer 31621 | -1/Command | Assimilated M Guard with formatsys_high 31950 | -1/Command | All MAIN.C guards destroyed 32230 | -1/Command | Disengaged cave seal 32579 | -1/Command | Found Prototype Device 32579 | -1/Command | Identified Exp. Transmission Jammer 32963 | -1/Command | Spotted Alpha 7 32963 | -1/Command | Spotted Striker 32968 | -1/Command | Spotted Executioner 32969 | -1/Command | Destroyed Alpha 7 32969 | -1/Command | Spotted Executioner 32970 | -1/Command | Destroyed Striker 32970 | -1/Command | Spotted Alpha 7 32971 | -1/Command | Destroyed Executioner 32973 | -1/Command | Spotted Striker 32974 | -1/Command | Spotted Executioner 32975 | -1/Command | Destroyed Striker 32975 | -1/Command | Spotted Executioner 32981 | -1/Command | Destroyed Alpha 7 32982 | -1/Command | Spotted B-99 Colossus 32982 | -1/Command | Destroyed Executioner 32983 | -1/Command | Destroyed Executioner 32997 | -1/Command | Destroyed B-99 Colossus 33003 | -1/Command | Spotted B-99 Colossus 33004 | -1/Command | Destroyed Executioner 33013 | -1/Command | Destroyed B-99 Colossus 33034 | -1/Command | Destroyed 10 combat bots 33100 | -1/Command | Found Prototype Device 33102 | -1/Command | Identified Adv. Kinecellerator 33130 | -1/Command | Found Prototype Ballistic Gun 33131 | -1/Command | Identified Multirail 33163 | -1/Command | Found Prototype Energy Gun 33164 | -1/Command | Identified Enh. Gamma Rifle 33192 | -1/Command | Discovered new exit (range 8) 34045 | -1/Command | Reached level 36 34049 | -1/Command | Core integrity fell below 50% 34092 | -1/Command | Destroyed 40 combat bots 34267 | -1/Command | Identified exit to Surface 34270 | *** | Escaped! Last Messages --------------- 34161_ Used Protomatter to restore core integrity (+153, depleted) 34196_ ALERT: Rogue bot located, Programmers report to Command Zone 9D. 34246_ Acquired 10 matter. 34246_ P-80 Master suffers critical hit (Destroy). 34246_ P-80 Master destroyed. 34247_ Acquired 24 matter. 34256_ Triggered Stasis Trap. 34256_ A bubble of rippling energy engulfs the area. 34256_ Field strength at 90. 34257_ Field strength at 80. 34258_ Field strength at 70. 34259_ Field strength at 60. 34260_ Field strength at 50. 34261_ Field strength at 40. 34262_ Field strength at 30. 34263_ Field strength at 20. 34264_ Field strength at 10. 34265_ Stasis field depleted. 34267_ EXIT=IDENTIFIED: SURFACE [Achievement: Mad Max] Map ----- +----------------------------------------------------+ | """" *"""" #???# % #?????????# #???? | | """"%%"""" #???# %[#?????????# #???? | | * """"=[ """ #???#] ! #?????????# #???? | | #???#[= %#?????????# #???? | | #???#! =#?????????# #???? | | #+########+########?###=]!!#?????????# #???? | | # ######???#[#!!%%#?????????#########???? | | # # #???#!#!!!!#?????????????????????? | | = ! # # ! !#???##*!!%!##????????????????????? | | *! # # #???##^!!^^=#????????????????????? | | * # # #???#!!*^[^^##???????????????????? | | # # #???#!^! ^ ^!#???????????????????? | | # # #???##^[^^^^##???????????????????? | | ########## # ! #???#! ^^^^^]#???????????????????? | | %% # #???##!^^!^^##???????????????????? | | + #???#=^^[^^*=#???????????????????? | | #########+#######???## ^!^!^!##??????????????????? | | ???#=]!|*%%[ #???#!^^^^^^%]#??????????????????? | | ####=[=%!!* ]#?#### ^^^^^!%##?????????????????? | | #][=[!!! #?#!=!!=!=!%*!!#?????????????????? | | + [!= #?#==[!![!![![%#?????????????????? | | # #?#]!^ ^^]^^^!!##????????????????? | | # "" #?#!*^ * = ^!!!#????????????????? | | #"""" #?#!]^ ^**##????????????????? | | #"""" #?#!!^ "" =!=#?????????????????? | | # "" #?# ^ "@ #?????????????????? | | # #?# ^ ^ #?????????????????? | | # #?# ^ #?????????????????? | | # #?# ^ ^ ^^^ #?????????????????? | | ##############?# #?????????????????? | | #??????????????# #?????????????????? | | #??????????????##############?????????????????? | | ####?????????????????????????????????????????????? | | ?????????????????????????????????????????????????? | | ?????????????????????????????????????????????????? | | ?????????????????????????????????????????????????? | | ?????????????????????????????????????????????????? | | ?????????????????????????????????????????????????? | | ??????????????????????????????????????????????#### | | ??????????????????????????????????????????????# | | ??????????????????????????????????????######### | | ??????????????????????????????????????# ## | | ??????????????????????????????????????# """ ## | | #?????????????????????????????????????# T""" ## | | #?????????????????????????????????????# """" ## | | #?????????????????????????????????????# """ ##### | | #???????????????????????????#######???# #???? | | ###########?????????????????# ##########+##### | | ## #?????????????????# | | ## #????##########???# | +----------------------------------------------------+ Best States ------------- Heat Dissipation 179 Energy Generation 105 Energy Capacity 950 Matter Stores 300 Matter Capacity 300 Sight Range 19 Robot Scan Range 18 Terrain Scan Range 24 Terrain Scan Density 610 Jamming Range 22 Armor Coverage 600 Weapon Cycling 25 Phase Shifting 20 Evasion (%) 62 Targeting Accuracy 12 Target Analysis 10 Core Analysis 8 Kinecelleration 50 Salvage Targeting 3 Offensive Hacking 15 Relay Coupler Types 8 Relay Coupler Value 271 Item Schematics ----------------- Wheel | -9/Materials | Hacked Enh. Autogun | -6/Factory | Scanalyzed Robot Schematics ------------------ None Fabricated ------------ Enh. Autogun | x1 | -4/Factory Alien Tech Used ----------------- Subatomic Replicator Core Stripper Integrated Reactor Core Membrane Integrated Dissipator Integrated Thermoelectric Network LRC Armor Achievements -------------- Executioner Mad Max Challenges ------------ None RPGLIKE | -11 -10 -10 -9 -9 -9 -8 -8 -8 -8 -8 -8 -8 -7 -7 -6 -6 -5 -5 -5 -5 -5 -5 -4 -4 -4 -4 -3 -3 -3 -3 -3 -2 -2 -2 -2 -1 -1 --------- Run | Jun Mat Min Mat Min Exi Min Mat Gar Mat Gar Mat Gar Fac Gar Fac Gar Fac Ext Cet Arc Hub Gar Fac Gar Fac Gar Res Gar Res Tes Gar Res Qua Sec Gar Acc Com Levels Raised 35 | . 3 1 6 . . 1 1 1 1 . . . 1 1 1 1 1 2 1 . 1 . 1 1 . 1 . 2 . . 1 1 1 1 . 1 2 XP Earned 55772 | 3000 5509 1530 8232 400 46 2077 1275 1588 414 295 265 539 929 1197 2052 1852 1675 2553 1083 308 1223 381 835 1342 1048 775 1051 1558 682 690 394 1543 1605 1092 891 1407 2436 XP Spent 55430 | 2650 2700 2230 6650 1100 . 1400 3300 1700 1700 . 440 70 1200 700 2000 2130 . 1200 . . 4070 1750 460 2600 . . . 3700 600 . . . 3880 . . 3500 3700 Upgrades 94 | 6 4 19 9 1 . 1 3 1 1 . 4 1 3 3 1 2 . 6 . . 3 1 2 1 . . . 2 2 . . . 3 . . 1 14 Power Slot 2 | . . . . . . . . . . . . . . 1 . . . . . . . . . . . . . 1 . . . . . . . . . Propulsion Slot 3 | 1 . . . . . . 2 . . . . . . . . . . . . . . . . . . . . . . . . . . . . . . Utility Slot 11 | 1 1 . . 1 . 1 . . 1 . . . . . 1 . . . . . 1 . . 1 . . . 1 . . . . 1 . . 1 . Weapon Slot 6 | 1 1 . 1 . . . 1 1 . . . . . . . 1 . . . . . . . . . . . . . . . . . . . . . Core Integrity 18 | . . 8 . . . . . . . . . . . . . . . . . . . . . . . . . . . . . . . . . . 10 Heat Dissipation 16 | . . . 1 . . . . . . . . 1 . 2 . 1 . 6 . . 1 . . . . . . . 2 . . . 2 . . . . Mass Support 1 | . . . 1 . . . . . . . . . . . . . . . . . . . . . . . . . . . . . . . . . . Inventory Capacity 7 | 1 1 . 3 . . . . . . . . . . . . . . . . . 1 1 . . . . . . . . . . . . . . . Sight Range 3 | . . 2 . . . . . . . . . . . . . . . . . . . . . . . . . . . . . . . . . . 1 Sensor Range 9 | . . 9 . . . . . . . . . . . . . . . . . . . . . . . . . . . . . . . . . . . Terrain Scan Density 6 | . . . . . . . . . . . 4 . . . . . . . . . . . 2 . . . . . . . . . . . . . . Ranged Accuracy 7 | 2 1 . 3 . . . . . . . . . . . . . . . . . . . . . . . . . . . . . . . . . 1 Hack Attack % 3 | . . . . . . . . . . . . . 3 . . . . . . . . . . . . . . . . . . . . . . . . KI Damage % 2 | . . . . . . . . . . . . . . . . . . . . . . . . . . . . . . . . . . . . . 2 Protomatter Created 11361 | . 310 67 731 50 . 90 376 623 202 112 72 483 233 478 79 316 43 189 287 . 322 494 . 434 349 284 49 1027 406 45 389 128 379 387 599 102 1226 Integrity Restored 15535 | . 546 . 1181 150 . 270 816 877 569 208 76 657 134 720 185 640 . 732 224 24 195 437 . 416 331 308 . 408 406 . 484 214 791 841 281 303 2111 Core 11473 | . 470 . 1059 150 . 270 664 727 304 134 63 360 107 531 142 437 . 429 67 15 195 298 . 333 271 237 . 313 275 . 359 208 500 413 212 265 1665 Parts 4062 | . 76 . 122 . . . 152 150 265 74 13 297 27 189 43 203 . 303 157 9 . 139 . 83 60 71 . 95 131 . 125 6 291 428 69 38 446 Protomatter Decayed 8855 | . 42 84 230 79 . . 99 420 5 37 45 255 140 225 121 367 43 171 265 109 331 220 . 297 632 328 49 931 278 45 222 56 110 48 576 57 1938 Game ------ Seed IntegratedPulseGenerator Manual? 0 Play Time 10:07:12 Cumulative 507.0 hours Start 2023.08.20 @ 07:51:26 End 2023.10.14 @ 10:33:05 Sessions 45 Manual Loads 0 Difficulty Rogue Special Mode Winter2019/RPGLIKE Game No. 92 Rogue 85 Adventurer 1 Explorer 6 Win Type 0 Total 39 Types 12/3/13/1/1/1/6/1/1 Lore% 92 Gallery% 93 Achievement% 83 Wizard Run 0 Options --------- ASCII 0 Keyboard 0 Movement Mouse Keybinds 0 Fullscreen 1 Font 18/SmallcapsGlow Map View 76x50 Tactical HUD 1 Map Filters NONE Filters NONE Steam 1 RUN: d8a9f82c-d735-425c-a54a-56cd9d3c8385